rowid,district,candidate,affiliation,expenditure_amount,expenditure_date,recipient,city,state,zip,expenditure_type,explanation
2,Bd. Ed. District 01,"Escarcega, Lisa",Democratic,1800.0,1/9/20 0:00,Jessica  Chauvin,Aurora,CO,80110,Consultant & Professional Services,
3,Bd. Ed. District 01,"Escarcega, Lisa",Democratic,1000.0,1/9/20 0:00,Kristen  Seidel,Denver,CO,80224,Consultant & Professional Services,
5,Bd. Ed. District 01,"Escarcega, Lisa",Democratic,2500.0,2/4/20 0:00,Jessica  Chauvin,Aurora,CO,80110,Consultant & Professional Services,
6,Bd. Ed. District 01,"Escarcega, Lisa",Democratic,1500.0,2/7/20 0:00,Kristen  Seidel,Denver,CO,80224,Consultant & Professional Services,
7,Bd. Ed. District 01,"Escarcega, Lisa",Democratic,1500.0,3/2/20 0:00,Kristen  Seidel,Denver,CO,80224,Consultant & Professional Services,
8,Bd. Ed. District 01,"Escarcega, Lisa",Democratic,2500.0,3/5/20 0:00,Jessica  Chauvin,Aurora,CO,80110,Consultant & Professional Services,
9,Bd. Ed. District 01,"Escarcega, Lisa",Democratic,500.0,3/9/20 0:00,Jessica  Chauvin,Aurora,CO,80110,Consultant & Professional Services,
10,Bd. Ed. District 01,"Escarcega, Lisa",Democratic,2500.0,3/31/20 0:00,Jessica  Chauvin,Aurora,CO,80110,Consultant & Professional Services,
11,Bd. Ed. District 01,"Escarcega, Lisa",Democratic,1560.0,4/3/20 0:00,Kristen  Seidel,Denver,CO,80224,Consultant & Professional Services,
12,Bd. Ed. District 01,"Escarcega, Lisa",Democratic,1000.0,4/6/20 0:00,Jessica  Chauvin,Aurora,CO,80110,Consultant & Professional Services,
13,Bd. Ed. District 01,"Escarcega, Lisa",Democratic,60.0,4/8/20 0:00,Tay  Anderson,Denver,CO,80205,Consultant & Professional Services,
15,Bd. Ed. District 01,"Escarcega, Lisa",Democratic,657.98,4/21/20 0:00,Kristen  Seidel,Denver,CO,80224,Consultant & Professional Services,
18,Bd. Ed. District 01,"Escarcega, Lisa",Democratic,1500.0,5/4/20 0:00,Kristen  Seidel,Denver,CO,80224,Consultant & Professional Services,
19,Bd. Ed. District 01,"Escarcega, Lisa",Democratic,3000.0,5/4/20 0:00,Jessica  Chauvin,Aurora,CO,80110,Consultant & Professional Services,
25,Bd. Ed. District 01,"Escarcega, Lisa",Democratic,18.37,6/1/20 0:00,Facebook,Menlo Park,CA,94025,Advertising,
28,Bd. Ed. District 01,"Escarcega, Lisa",Democratic,25.0,6/10/20 0:00,Facebook,Menlo Park,CA,94025,Advertising,
31,Bd. Ed. District 01,"Escarcega, Lisa",Democratic,35.0,6/16/20 0:00,Facebook,Menlo Park,CA,94025,Advertising,
34,Bd. Ed. District 01,"Escarcega, Lisa",Democratic,50.0,6/24/20 0:00,Facebook,Menlo Park,CA,94025,Advertising,
36,Bd. Ed. District 01,"Escarcega, Lisa",Democratic,75.0,6/26/20 0:00,Facebook,Menlo Park,CA,94025,Advertising,
37,Bd. Ed. District 01,"Escarcega, Lisa",Democratic,350.0,6/29/20 0:00,Google,Mountain View,CA,94043,Advertising,
38,Bd. Ed. District 01,"Escarcega, Lisa",Democratic,125.0,6/30/20 0:00,Facebook,Menlo Park,CA,94025,Advertising,
39,Bd. Ed. District 01,"Escarcega, Lisa",Democratic,1500.0,7/1/20 0:00,Kristen  Seidel,Denver,CO,80224,Consultant & Professional Services,
40,Bd. Ed. District 01,"Escarcega, Lisa",Democratic,289.55,7/1/20 0:00,Facebook,Menlo Park,CA,94025,Advertising,
41,Bd. Ed. District 01,"Escarcega, Lisa",Democratic,3500.0,7/2/20 0:00,Jessica  Chauvin,Aurora,CO,80110,Consultant & Professional Services,
47,Bd. Ed. District 01,"Escarcega, Lisa",Democratic,500.0,8/3/20 0:00,Kristen  Seidel,Denver,CO,80224,Consultant & Professional Services,
48,Bd. Ed. District 01,"Escarcega, Lisa",Democratic,3.56,8/3/20 0:00,Facebook,Menlo Park,CA,94025,Advertising,
51,Bd. Ed. District 01,"Escarcega, Lisa",Democratic,500.0,9/4/20 0:00,Kristen  Seidel,Denver,CO,80224,Consultant & Professional Services,
57,Bd. Ed. District 01,"Escarcega, Lisa",Democratic,750.0,10/1/20 0:00,Kristen  Seidel,Denver,CO,80224,Consultant & Professional Services,
63,Bd. Ed. District 01,"Escarcega, Lisa",Democratic,750.0,11/5/20 0:00,Kristen  Seidel,Denver,CO,80224,Consultant & Professional Services,
177,Bd. Ed. District 01,"Hayman, Alan",Libertarian,,,,,,,,
180,Bd. Ed. District 03,"Simpson, Mayling",Democratic,25.79,4/5/20 0:00,Actblue,Somerville,MA,02144-0031,Fundraising Expenses,
181,Bd. Ed. District 03,"Simpson, Mayling",Democratic,3.95,4/8/20 0:00,Actblue,Somerville,MA,02144-0031,Fundraising Expenses,
182,Bd. Ed. District 03,"Simpson, Mayling",Democratic,3.95,4/12/20 0:00,Actblue,Somerville,MA,02144-0031,Fundraising Expenses,
183,Bd. Ed. District 03,"Simpson, Mayling",Democratic,3.96,4/26/20 0:00,Actblue,Somerville,MA,02144-0031,Fundraising Expenses,
184,Bd. Ed. District 03,"Simpson, Mayling",Democratic,16.24,4/28/20 0:00,Zoom,San Jose,CA,95113,Miscellaneous,
185,Bd. Ed. District 03,"Simpson, Mayling",Democratic,37.53,4/29/20 0:00,Actblue,Somerville,MA,02144-0031,Fundraising Expenses,
186,Bd. Ed. District 03,"Simpson, Mayling",Democratic,5.93,5/3/20 0:00,Actblue,Somerville,MA,02144-0031,Fundraising Expenses,
187,Bd. Ed. District 03,"Simpson, Mayling",Democratic,5.93,5/13/20 0:00,Actblue,Somerville,MA,02144-0031,Fundraising Expenses,
188,Bd. Ed. District 03,"Simpson, Mayling",Democratic,4.95,5/27/20 0:00,Actblue,Somerville,MA,02144-0031,Fundraising Expenses,
190,Bd. Ed. District 03,"Simpson, Mayling",Democratic,4.95,5/27/20 0:00,Actblue,Somerville,MA,02144-0031,Fundraising Expenses,
191,Bd. Ed. District 03,"Simpson, Mayling",Democratic,3.95,5/31/20 0:00,Actblue,Somerville,MA,02144-0031,Fundraising Expenses,
192,Bd. Ed. District 03,"Simpson, Mayling",Democratic,1.98,6/1/20 0:00,Actblue,Somerville,MA,02144-0031,Fundraising Expenses,
194,Bd. Ed. District 03,"Simpson, Mayling",Democratic,20.74,6/9/20 0:00,Actblue,Somerville,MA,02144-0031,Fundraising Expenses,
198,Bd. Ed. District 03,"Simpson, Mayling",Democratic,9.88,6/29/20 0:00,Actblue,Somerville,MA,02144-0031,Fundraising Expenses,
200,Bd. Ed. District 03,"Simpson, Mayling",Democratic,9.88,6/29/20 0:00,Actblue,Somerville,MA,02144-0031,Fundraising Expenses,
201,Bd. Ed. District 03,"Simpson, Mayling",Democratic,16.24,6/29/20 0:00,Zoom,San Jose,CA,95113,Miscellaneous,
202,Bd. Ed. District 03,"Simpson, Mayling",Democratic,9.88,6/30/20 0:00,Actblue,Somerville,MA,02144-0031,Fundraising Expenses,
203,Bd. Ed. District 03,"Simpson, Mayling",Democratic,36.0,7/1/20 0:00,Constant Contact,Waltham,MA,2451,Advertising,
204,Bd. Ed. District 03,"Simpson, Mayling",Democratic,5.93,7/5/20 0:00,Actblue,Somerville,MA,02144-0031,Fundraising Expenses,
205,Bd. Ed. District 03,"Simpson, Mayling",Democratic,7.9,7/12/20 0:00,Actblue,Somerville,MA,02144-0031,Fundraising Expenses,
207,Bd. Ed. District 03,"Simpson, Mayling",Democratic,7.9,7/12/20 0:00,Actblue,Somerville,MA,02144-0031,Fundraising Expenses,
208,Bd. Ed. District 03,"Simpson, Mayling",Democratic,5.93,7/13/20 0:00,Actblue,Somerville,MA,02144-0031,Fundraising Expenses,
209,Bd. Ed. District 03,"Simpson, Mayling",Democratic,40.95,7/19/20 0:00,Actblue,Somerville,MA,02144-0031,Fundraising Expenses,
211,Bd. Ed. District 03,"Simpson, Mayling",Democratic,16.79,7/28/20 0:00,Actblue,Somerville,MA,02144-0031,Fundraising Expenses,
213,Bd. Ed. District 03,"Simpson, Mayling",Democratic,13.83,8/2/20 0:00,Actblue,Somerville,MA,02144-0031,Fundraising Expenses,
215,Bd. Ed. District 03,"Simpson, Mayling",Democratic,110.67,8/9/20 0:00,Actblue,Somerville,MA,02144-0031,Fundraising Expenses,
216,Bd. Ed. District 03,"Simpson, Mayling",Democratic,85.97,8/16/20 0:00,Actblue,Somerville,MA,02144-0031,Fundraising Expenses,
217,Bd. Ed. District 03,"Simpson, Mayling",Democratic,7.9,8/23/20 0:00,Actblue,Somerville,MA,02144-0031,Fundraising Expenses,
218,Bd. Ed. District 03,"Simpson, Mayling",Democratic,165.0,8/27/20 0:00,Olive  Welsh,Colorado Springs,CO,80903,Consultant & Professional Services,
219,Bd. Ed. District 03,"Simpson, Mayling",Democratic,16.24,8/28/20 0:00,Zoom,San Jose,CA,95113,Miscellaneous,
220,Bd. Ed. District 03,"Simpson, Mayling",Democratic,5.93,8/30/20 0:00,Actblue,Somerville,MA,02144-0031,Fundraising Expenses,
221,Bd. Ed. District 03,"Simpson, Mayling",Democratic,1000.0,8/31/20 0:00,"Steele Strategies, Llc",Denver,CO,80203,Consultant & Professional Services,
222,Bd. Ed. District 03,"Simpson, Mayling",Democratic,1.98,9/6/20 0:00,Actblue,Somerville,MA,02144-0031,Fundraising Expenses,
223,Bd. Ed. District 03,"Simpson, Mayling",Democratic,1082.04,9/10/20 0:00,Northwest Graphics,Steamboat Springs,CO,80487,Advertising,
224,Bd. Ed. District 03,"Simpson, Mayling",Democratic,28.64,9/13/20 0:00,Actblue,Somerville,MA,02144-0031,Fundraising Expenses,
227,Bd. Ed. District 03,"Simpson, Mayling",Democratic,5.93,9/16/20 0:00,Actblue,Somerville,MA,02144-0031,Fundraising Expenses,
229,Bd. Ed. District 03,"Simpson, Mayling",Democratic,31.37,9/18/20 0:00,Conoco,Steamboat Springs,CO,80487,Travel & Lodging,
231,Bd. Ed. District 03,"Simpson, Mayling",Democratic,3.95,9/20/20 0:00,Actblue,Somerville,MA,02144-0031,Fundraising Expenses,
234,Bd. Ed. District 03,"Simpson, Mayling",Democratic,1500.0,9/25/20 0:00,Colorado Democratic Party,Denver,CO,80203,Advertising,
235,Bd. Ed. District 03,"Simpson, Mayling",Democratic,27.49,9/27/20 0:00,Actblue,Somerville,MA,02144-0031,Fundraising Expenses,
238,Bd. Ed. District 03,"Simpson, Mayling",Democratic,1000.0,9/28/20 0:00,"Steele Strategies, Llc",Denver,CO,80203,Consultant & Professional Services,
240,Bd. Ed. District 03,"Simpson, Mayling",Democratic,6.34,9/30/20 0:00,Act Blue,Summerville,MA,2144,Fundraising Expenses,
242,Bd. Ed. District 03,"Simpson, Mayling",Democratic,2.38,10/4/20 0:00,Act Blue,Summerville,MA,2144,Fundraising Expenses,
244,Bd. Ed. District 03,"Simpson, Mayling",Democratic,1000.0,10/5/20 0:00,Voterfied,Rancho Santa Fe,CA,92067,Advertising,
245,Bd. Ed. District 03,"Simpson, Mayling",Democratic,3.95,10/11/20 0:00,Act Blue,Summerville,MA,2144,Fundraising Expenses,
246,Bd. Ed. District 03,"Simpson, Mayling",Democratic,5.93,10/14/20 0:00,Act Blue,Summerville,MA,2144,Fundraising Expenses,
247,Bd. Ed. District 03,"Simpson, Mayling",Democratic,25.0,10/14/20 0:00,Facebook,Menlo Park,CA,94025,Advertising,
248,Bd. Ed. District 03,"Simpson, Mayling",Democratic,35.0,10/14/20 0:00,Facebook,Menlo Park,CA,94025,Advertising,
249,Bd. Ed. District 03,"Simpson, Mayling",Democratic,50.0,10/14/20 0:00,Facebook,Menlo Park,CA,94025,Advertising,
250,Bd. Ed. District 03,"Simpson, Mayling",Democratic,25.0,10/14/20 0:00,Facebook,Menlo Park,CA,94025,Advertising,
251,Bd. Ed. District 03,"Simpson, Mayling",Democratic,25.0,10/14/20 0:00,Facebook,Menlo Park,CA,94025,Advertising,
252,Bd. Ed. District 03,"Simpson, Mayling",Democratic,2000.0,10/15/20 0:00,Voterfied,Rancho Santa Fe,CA,92067,Advertising,
253,Bd. Ed. District 03,"Simpson, Mayling",Democratic,75.0,10/15/20 0:00,Facebook,Menlo Park,CA,94025,Advertising,
254,Bd. Ed. District 03,"Simpson, Mayling",Democratic,75.0,10/15/20 0:00,Facebook,Menlo Park,CA,94025,Advertising,
255,Bd. Ed. District 03,"Simpson, Mayling",Democratic,125.0,10/16/20 0:00,Facebook,Menlo Park,CA,94025,Advertising,
256,Bd. Ed. District 03,"Simpson, Mayling",Democratic,175.0,10/16/20 0:00,Facebook,Menlo Park,CA,94025,Advertising,
257,Bd. Ed. District 03,"Simpson, Mayling",Democratic,250.0,10/16/20 0:00,Facebook,Menlo Park,CA,94025,Advertising,
259,Bd. Ed. District 03,"Simpson, Mayling",Democratic,12.26,10/18/20 0:00,Actblue,Somerville,MA,02144-0031,Fundraising Expenses,
260,Bd. Ed. District 03,"Simpson, Mayling",Democratic,1400.0,10/19/20 0:00,Brightstar Strategies,Grand Junction,CO,81507,Consultant & Professional Services,
261,Bd. Ed. District 03,"Simpson, Mayling",Democratic,400.0,10/19/20 0:00,Facebook,Menlo Park,CA,94025,Advertising,
262,Bd. Ed. District 03,"Simpson, Mayling",Democratic,600.0,10/21/20 0:00,Facebook,Menlo Park,CA,94025,Advertising,
263,Bd. Ed. District 03,"Simpson, Mayling",Democratic,2500.0,10/23/20 0:00,Voterfied Inc,Ranco Santa Fe,CA,85706,Advertising,
264,Bd. Ed. District 03,"Simpson, Mayling",Democratic,4.95,10/25/20 0:00,Actblue,Somerville,MA,02144-0031,Fundraising Expenses,
265,Bd. Ed. District 03,"Simpson, Mayling",Democratic,900.0,10/25/20 0:00,Facebook,Menlo Park,CA,94025,Advertising,
270,Bd. Ed. District 03,"Simpson, Mayling",Democratic,1000.0,10/26/20 0:00,Voterfied Inc,Ranco Santa Fe,CA,85706,Advertising,
271,Bd. Ed. District 03,"Simpson, Mayling",Democratic,126.7,10/26/20 0:00,Amazon,Seattle,WA,98108,Advertising,
272,Bd. Ed. District 03,"Simpson, Mayling",Democratic,1000.0,10/27/20 0:00,Voterfied Inc,Ranco Santa Fe,CA,85706,Advertising,
273,Bd. Ed. District 03,"Simpson, Mayling",Democratic,1250.0,10/28/20 0:00,"Steele Strategies, Llc",Denver,CO,80203,Consultant & Professional Services,
276,Bd. Ed. District 03,"Simpson, Mayling",Democratic,70.0,10/29/20 0:00,Constant Contact,Waltham,MA,2451,Advertising,
278,Bd. Ed. District 03,"Simpson, Mayling",Democratic,900.0,10/29/20 0:00,Facebook,Menlo Park,CA,94025,Advertising,
279,Bd. Ed. District 03,"Simpson, Mayling",Democratic,190.0,10/30/20 0:00,"Grand Junction Media, Inc",Grand Junction,CO,80501,Advertising,
280,Bd. Ed. District 03,"Simpson, Mayling",Democratic,760.0,10/30/20 0:00,"Grand Junction Media, Inc",Grand Junction,CO,80501,Advertising,
281,Bd. Ed. District 03,"Simpson, Mayling",Democratic,0.79,11/1/20 0:00,Actblue,Somerville,MA,02144-0031,Fundraising Expenses,
282,Bd. Ed. District 03,"Simpson, Mayling",Democratic,900.0,11/2/20 0:00,Facebook,Menlo Park,CA,94025,Advertising,
283,Bd. Ed. District 03,"Simpson, Mayling",Democratic,906.99,11/2/20 0:00,Facebook,Menlo Park,CA,94025,Advertising,
285,Bd. Ed. District 03,"Simpson, Mayling",Democratic,453.29,11/13/20 0:00,Facebook,Menlo Park,CA,94025,Advertising,
287,Bd. Ed. District 03,"Rankin, Joyce",Republican,6.06,1/4/19 0:00,Alpine Bank,Carbondale,CO,81623,Bank Fees,
288,Bd. Ed. District 03,"Rankin, Joyce",Republican,150.0,4/25/19 0:00,Sws Polifi,Fort Lupton,CO,80621,Consultant & Professional Services,
292,Bd. Ed. District 03,"Rankin, Joyce",Republican,5.5,6/30/19 0:00,Alpine Bank,Carbondale,CO,81623,Bank Fees,
293,Bd. Ed. District 03,"Rankin, Joyce",Republican,150.0,7/27/19 0:00,Sws Polifi,Fort Lupton,CO,80621,Consultant & Professional Services,
294,Bd. Ed. District 03,"Rankin, Joyce",Republican,2.75,7/31/19 0:00,Alpine Bank,Carbondale,CO,81623,Bank Fees,
295,Bd. Ed. District 03,"Rankin, Joyce",Republican,2.73,8/31/19 0:00,Alpine Bank,Carbondale,CO,81623,Bank Fees,
298,Bd. Ed. District 03,"Rankin, Joyce",Republican,3.54,9/30/19 0:00,Alpine Bank,Carbondale,CO,81623,Bank Fees,
299,Bd. Ed. District 03,"Rankin, Joyce",Republican,150.0,1/7/20 0:00,Sws Polifi Llc,Fort Lupton,CO,80621,Consultant & Professional Services,
301,Bd. Ed. District 03,"Rankin, Joyce",Republican,65.0,2/11/20 0:00,Moffat County Republican Central Committee (Mcrcc),Craig,CO,81626,"Food, Beverages and Meals",
303,Bd. Ed. District 03,"Rankin, Joyce",Republican,2.06,3/31/20 0:00,Alpine Bank,Carbondale,CO,81623,Bank Fees,
304,Bd. Ed. District 03,"Rankin, Joyce",Republican,1.66,4/30/20 0:00,Alpine Bank,Carbondale,CO,81623,Bank Fees,
305,Bd. Ed. District 03,"Rankin, Joyce",Republican,150.0,5/18/20 0:00,Sws Polifi Llc,Fort Lupton,CO,80621,Consultant & Professional Services,
306,Bd. Ed. District 03,"Rankin, Joyce",Republican,0.9,5/29/20 0:00,Alpine Bank,Carbondale,CO,81623,Bank Fees,
307,Bd. Ed. District 03,"Rankin, Joyce",Republican,150.0,6/8/20 0:00,Sws Polifi Llc,Fort Lupton,CO,80621,Consultant & Professional Services,
308,Bd. Ed. District 03,"Rankin, Joyce",Republican,150.0,6/10/20 0:00,Sws Polifi,Fort Lupton,CO,80621,Consultant & Professional Services,
309,Bd. Ed. District 03,"Rankin, Joyce",Republican,1.65,6/30/20 0:00,Alpine Bank,Carbondale,CO,81623,Bank Fees,
310,Bd. Ed. District 03,"Rankin, Joyce",Republican,230.0,7/1/20 0:00,Valley Publishing,Monte Vista,CO,81144,Advertising,
312,Bd. Ed. District 03,"Rankin, Joyce",Republican,150.0,7/1/20 0:00,Sws Polifi Llc,Fort Lupton,CO,80621,Consultant & Professional Services,
317,Bd. Ed. District 03,"Rankin, Joyce",Republican,13.28,7/23/20 0:00,Anedot,New Orleans,LA,80112,Bank Fees,
318,Bd. Ed. District 03,"Rankin, Joyce",Republican,51.18,8/14/20 0:00,Purple Pig,Alamosa,CO,81101,"Food, Beverages and Meals",
321,Bd. Ed. District 03,"Rankin, Joyce",Republican,132.75,8/25/20 0:00,Promotional Concepts,Carbondale,CO,81623,Fundraising Expenses,
322,Bd. Ed. District 03,"Rankin, Joyce",Republican,25.0,9/2/20 0:00,Pueblo County Republican Party,Pueblo,CO,81005,"Food, Beverages and Meals",
323,Bd. Ed. District 03,"Rankin, Joyce",Republican,90.0,9/2/20 0:00,"Eagle County Republicans (Ecr, Ecrcc)",Vail,CO,81620,"Food, Beverages and Meals",
324,Bd. Ed. District 03,"Rankin, Joyce",Republican,23.82,9/3/20 0:00,Purple Pig,Alamosa,CO,81101,"Food, Beverages and Meals",
325,Bd. Ed. District 03,"Rankin, Joyce",Republican,10.36,9/5/20 0:00,Solar Roast,Pueblo,CO,81001,"Food, Beverages and Meals",
326,Bd. Ed. District 03,"Rankin, Joyce",Republican,154.92,9/5/20 0:00,Fairfield Inn,Alamosa,CO,81101,Travel & Lodging,
327,Bd. Ed. District 03,"Rankin, Joyce",Republican,215.87,9/6/20 0:00,Courtyard By Marriott,Pueblo,CO,81003,Travel & Lodging,
329,Bd. Ed. District 03,"Rankin, Joyce",Republican,500.0,10/1/20 0:00,Garfield County Republican Central Committee,Carbondale,CO,81623-9117,Fundraising Expenses,
330,Bd. Ed. District 03,"Rankin, Joyce",Republican,391.0,10/8/20 0:00,Sws Polifi Llc,Fort Lupton,CO,80621,Consultant & Professional Services,
331,Bd. Ed. District 03,"Rankin, Joyce",Republican,20.0,10/15/20 0:00,Mesa County Republican Party,Grand Junction,CO,81501,Miscellaneous,
332,Bd. Ed. District 03,"Rankin, Joyce",Republican,272.25,10/15/20 0:00,Joyce  Rankin,Carbondale,CO,81623,Travel & Lodging,
333,Bd. Ed. District 03,"Rankin, Joyce",Republican,150.0,10/28/19 0:00,Sws Polifi Llc,Fort Lupton,CO,80621,Consultant & Professional Services,
334,Bd. Ed. District 03,"Rankin, Joyce",Republican,1200.0,11/5/20 0:00,Monte Vista Journal,Monte Vista,CO,81144,Advertising,
336,Bd. Ed. District 03,"Rankin, Joyce",Republican,55.0,11/5/20 0:00,Us Postal Service,Carbondale,CO,81623,Fundraising Expenses,
337,Bd. Ed. District 03,"Rankin, Joyce",Republican,400.0,11/5/20 0:00,Multiple Marketing,Avon,CO,81620,Fundraising Expenses,
338,Bd. Ed. District 03,"Rankin, Joyce",Republican,541.0,11/13/20 0:00,Sws Polifi Llc,Fort Lupton,CO,80621,Consultant & Professional Services,
339,Bd. Ed. District 03,"Rankin, Joyce",Republican,5.89,12/31/19 0:00,Alpine Bank,Carbondale,CO,81623,Bank Fees,
434,Bd. Ed. District 07,"Pallozzi, Nancy",Republican,98.41,7/13/20 0:00,House Of Flags,Lakewood,CO,,Office Equipment & Supplies,
435,Bd. Ed. District 07,"Pallozzi, Nancy",Republican,166.89,7/18/20 0:00,Safeway Grocers,Lakewood,CO,,Fundraising Expenses,
436,Bd. Ed. District 07,"Pallozzi, Nancy",Republican,23.64,7/21/20 0:00,Office Max,Lakewood,CO,,Office Equipment & Supplies,
437,Bd. Ed. District 07,"Pallozzi, Nancy",Republican,262.78,7/21/20 0:00,Century Link,,CO,,Telephone,
443,Bd. Ed. District 07,"Pallozzi, Nancy",Republican,108.68,10/20/20 0:00,Century Link,Seattle,WA,98111-9255,Telephone,
446,Bd. Ed. District 07,"Pallozzi, Nancy",Republican,128.05,10/25/20 0:00,"Vision Graphics, Inc",Denver,CO,80216,Consultant & Professional Services,
449,CU Regent  District 02,"Rennison, Callie",Democratic,113.21,9/15/19 0:00,Actblue,Somerville,CO,2144,Fundraising Expenses,
450,CU Regent  District 02,"Rennison, Callie",Democratic,650.0,9/20/19 0:00,Ampersand Graphic Design,Boulder,CO,80303,Consultant & Professional Services,
452,CU Regent  District 02,"Rennison, Callie",Democratic,60.08,9/22/19 0:00,Actblue,Somerville,CO,2144,Fundraising Expenses,
453,CU Regent  District 02,"Rennison, Callie",Democratic,114.03,9/29/19 0:00,Actblue,Somerville,CO,2144,Fundraising Expenses,
455,CU Regent  District 02,"Rennison, Callie",Democratic,17.78,9/30/19 0:00,,,,,Fundraising Expenses,
457,CU Regent  District 02,"Rennison, Callie",Democratic,17.78,9/30/19 0:00,Actblue,Somerville,CO,2144,Advertising,
458,CU Regent  District 02,"Rennison, Callie",Democratic,1.98,1/5/20 0:00,Actblue,Somerville,CO,2144,Fundraising Expenses,
459,CU Regent  District 02,"Rennison, Callie",Democratic,33.75,1/7/20 0:00,Ampersand Graphic Design,Boulder,CO,80303,Fundraising Expenses,
460,CU Regent  District 02,"Rennison, Callie",Democratic,7.9,1/12/20 0:00,Actblue,Somerville,CO,2144,Fundraising Expenses,
461,CU Regent  District 02,"Rennison, Callie",Democratic,30.0,1/16/20 0:00,Action Network,Washington,DC,20036,Advertising,
462,CU Regent  District 02,"Rennison, Callie",Democratic,4.94,1/19/20 0:00,Actblue,Somerville,CO,2144,Fundraising Expenses,
463,CU Regent  District 02,"Rennison, Callie",Democratic,1.98,1/26/20 0:00,Actblue,Somerville,CO,2144,Fundraising Expenses,
464,CU Regent  District 02,"Rennison, Callie",Democratic,500.0,1/28/20 0:00,Colorado Democratic Party,Denver,CO,80203,Advertising,
465,CU Regent  District 02,"Rennison, Callie",Democratic,4500.0,1/28/20 0:00,Colorado Democratic Party,Denver,CO,80203,Advertising,
466,CU Regent  District 02,"Rennison, Callie",Democratic,39.11,2/2/20 0:00,Actblue,Somerville,CO,2144,Fundraising Expenses,
467,CU Regent  District 02,"Rennison, Callie",Democratic,47.23,2/9/20 0:00,Actblue,Somerville,CO,2144,Fundraising Expenses,
468,CU Regent  District 02,"Rennison, Callie",Democratic,12.36,2/16/20 0:00,Actblue,Somerville,CO,2144,Fundraising Expenses,
469,CU Regent  District 02,"Rennison, Callie",Democratic,10.0,2/16/20 0:00,Action Network,Washington,DC,20036,Fundraising Expenses,
470,CU Regent  District 02,"Rennison, Callie",Democratic,1138.73,2/17/20 0:00,C & D Printing And Mailing,Denver,CO,80212,Fundraising Expenses,
471,CU Regent  District 02,"Rennison, Callie",Democratic,47.43,2/23/20 0:00,Actblue,Somerville,CO,2144,Fundraising Expenses,
472,CU Regent  District 02,"Rennison, Callie",Democratic,31.22,3/1/20 0:00,Actblue,Somerville,CO,2144,Fundraising Expenses,
473,CU Regent  District 02,"Rennison, Callie",Democratic,2250.0,3/3/20 0:00,Complete Digital Llc,Washington,DC,20003,Consultant & Professional Services,
476,CU Regent  District 02,"Rennison, Callie",Democratic,18.19,3/8/20 0:00,Actblue,Somerville,CO,2144,Fundraising Expenses,
480,CU Regent  District 02,"Rennison, Callie",Democratic,149.0,3/13/20 0:00,Phone Burner,Laguna Beach,CA,92651,Advertising,
481,CU Regent  District 02,"Rennison, Callie",Democratic,44.46,3/15/20 0:00,Actblue,Somerville,CO,2144,Fundraising Expenses,
482,CU Regent  District 02,"Rennison, Callie",Democratic,30.0,3/16/20 0:00,Action Network,Washington,DC,20036,Advertising,
483,CU Regent  District 02,"Rennison, Callie",Democratic,134.0,3/16/20 0:00,Phone Burner,Laguna Beach,CA,92651,Advertising,
484,CU Regent  District 02,"Rennison, Callie",Democratic,100.0,3/16/20 0:00,Hustle,San Francisco,CA,94105,Advertising,
485,CU Regent  District 02,"Rennison, Callie",Democratic,10.0,3/16/20 0:00,Action Network,Washington,DC,20036,Fundraising Expenses,
486,CU Regent  District 02,"Rennison, Callie",Democratic,2000.0,3/17/20 0:00,Heart Mind Media,Denver,CO,80207,Fundraising Expenses,
487,CU Regent  District 02,"Rennison, Callie",Democratic,1119.79,3/18/20 0:00,C & D Printing And Mailing,Denver,CO,80212,Fundraising Expenses,
489,CU Regent  District 02,"Rennison, Callie",Democratic,306.25,3/20/20 0:00,Ampersand Graphic Design,Boulder,CO,80303,Fundraising Expenses,
490,CU Regent  District 02,"Rennison, Callie",Democratic,1.98,3/22/20 0:00,Actblue,Somerville,CO,2144,Fundraising Expenses,
491,CU Regent  District 02,"Rennison, Callie",Democratic,14.82,3/29/20 0:00,Actblue,Somerville,CO,2144,Fundraising Expenses,
492,CU Regent  District 02,"Rennison, Callie",Democratic,4.94,3/31/20 0:00,Actblue,Somerville,CO,2144,Fundraising Expenses,
493,CU Regent  District 02,"Rennison, Callie",Democratic,35.0,4/2/20 0:00,Us Postal Service,Superior,CO,80027,Fundraising Expenses,
494,CU Regent  District 02,"Rennison, Callie",Democratic,40.89,4/5/20 0:00,Actblue,Somerville,CO,2144,Fundraising Expenses,
495,CU Regent  District 02,"Rennison, Callie",Democratic,2.97,4/12/20 0:00,Actblue,Somerville,CO,2144,Fundraising Expenses,
496,CU Regent  District 02,"Rennison, Callie",Democratic,10.0,4/16/20 0:00,Action Network,Washington,DC,20036,Fundraising Expenses,
497,CU Regent  District 02,"Rennison, Callie",Democratic,52.36,4/19/20 0:00,Actblue,Somerville,CO,2144,Fundraising Expenses,
498,CU Regent  District 02,"Rennison, Callie",Democratic,104.71,4/26/20 0:00,Actblue,Somerville,CO,2144,Fundraising Expenses,
499,CU Regent  District 02,"Rennison, Callie",Democratic,40.72,4/29/20 0:00,Actblue,Somerville,CO,2144,Fundraising Expenses,
500,CU Regent  District 02,"Rennison, Callie",Democratic,35.0,5/2/20 0:00,Us Postal Service,Superior,CO,80027,Fundraising Expenses,
501,CU Regent  District 02,"Rennison, Callie",Democratic,5.74,5/3/20 0:00,Actblue,Somerville,CO,2144,Fundraising Expenses,
502,CU Regent  District 02,"Rennison, Callie",Democratic,34.4,5/10/20 0:00,Actblue,Somerville,CO,2144,Fundraising Expenses,
503,CU Regent  District 02,"Rennison, Callie",Democratic,5000.0,5/11/20 0:00,Hilltop Public Solutions,Washington,DC,20007,Consultant & Professional Services,
505,CU Regent  District 02,"Rennison, Callie",Democratic,21.74,5/17/20 0:00,Actblue,Somerville,CO,2144,Fundraising Expenses,
506,CU Regent  District 02,"Rennison, Callie",Democratic,137.15,5/24/20 0:00,Actblue,Somerville,CO,2144,Fundraising Expenses,
507,CU Regent  District 02,"Rennison, Callie",Democratic,1000.0,5/26/20 0:00,Heart Mind Media,Denver,CO,80207,Consultant & Professional Services,
508,CU Regent  District 02,"Rennison, Callie",Democratic,109.15,5/27/20 0:00,Act Blue,Somerville,MA,2144,Fundraising Expenses,
510,CU Regent  District 02,"Rennison, Callie",Democratic,36.55,5/31/20 0:00,Act Blue,Somerville,MA,2144,Fundraising Expenses,
511,CU Regent  District 02,"Rennison, Callie",Democratic,19.97,5/31/20 0:00,Act Blue,Somerville,MA,2144,Fundraising Expenses,
513,CU Regent  District 02,"Rennison, Callie",Democratic,17500.0,6/1/20 0:00,Complete Digital Llc,Washington,DC,20003,Advertising,
516,CU Regent  District 02,"Rennison, Callie",Democratic,438.75,6/3/20 0:00,Ampersand Graphic Design,Boulder,CO,80303,Consultant & Professional Services,
517,CU Regent  District 02,"Rennison, Callie",Democratic,19.97,6/3/20 0:00,Actblue,Somerville,CO,2144,Fundraising Expenses,
518,CU Regent  District 02,"Rennison, Callie",Democratic,0.71,6/5/20 0:00,Facebook,Menlo Park,CA,94025,Advertising,
519,CU Regent  District 02,"Rennison, Callie",Democratic,1.29,6/6/20 0:00,Facebook,Menlo Park,CA,94025,Advertising,
521,CU Regent  District 02,"Rennison, Callie",Democratic,40.31,6/7/20 0:00,Actblue,Somerville,CO,2144,Fundraising Expenses,
525,CU Regent  District 02,"Rennison, Callie",Democratic,123.97,6/10/20 0:00,Actblue,Somerville,CO,2144,Fundraising Expenses,
529,CU Regent  District 02,"Rennison, Callie",Democratic,12.67,6/14/20 0:00,Actblue,Somerville,CO,2144,Fundraising Expenses,
530,CU Regent  District 02,"Rennison, Callie",Democratic,12650.0,6/15/20 0:00,Complete Digital Llc,Washington,DC,20003,Advertising,
533,CU Regent  District 02,"Rennison, Callie",Democratic,85.67,6/17/20 0:00,Actblue,Somerville,CO,2144,Fundraising Expenses,
534,CU Regent  District 02,"Rennison, Callie",Democratic,70.0,6/19/20 0:00,Us Postal Service,Superior,CO,80027,Fundraising Expenses,
535,CU Regent  District 02,"Rennison, Callie",Democratic,43.31,6/21/20 0:00,Actblue,Somerville,CO,2144,Fundraising Expenses,
536,CU Regent  District 02,"Rennison, Callie",Democratic,7000.0,6/22/20 0:00,Complete Digital Llc,Washington,DC,20003,Advertising,
537,CU Regent  District 02,"Rennison, Callie",Democratic,1850.0,6/22/20 0:00,Complete Digital Llc,Washington,DC,20003,Advertising,
542,CU Regent  District 02,"Rennison, Callie",Democratic,102.92,6/24/20 0:00,Actblue,Somerville,CO,2144,Fundraising Expenses,
543,CU Regent  District 02,"Rennison, Callie",Democratic,65.63,6/28/20 0:00,Actblue,Somerville,CO,2144,Fundraising Expenses,
544,CU Regent  District 02,"Rennison, Callie",Democratic,18.39,6/30/20 0:00,Actblue,Somerville,CO,2144,Fundraising Expenses,
545,CU Regent  District 02,"Rennison, Callie",Democratic,9.88,7/1/20 0:00,Actblue,Somerville,CO,2144,Fundraising Expenses,
546,CU Regent  District 02,"Rennison, Callie",Democratic,258.75,7/2/20 0:00,Ampersand Graphic Design,Boulder,CO,80303,Consultant & Professional Services,
547,CU Regent  District 02,"Rennison, Callie",Democratic,0.4,7/5/20 0:00,Actblue,Somerville,CO,2144,Fundraising Expenses,
548,CU Regent  District 02,"Rennison, Callie",Democratic,3.96,7/15/20 0:00,Actblue,Somerville,CO,2144,Fundraising Expenses,
549,CU Regent  District 02,"Rennison, Callie",Democratic,20.15,7/19/20 0:00,Actblue,Somerville,CO,2144,Fundraising Expenses,
550,CU Regent  District 02,"Rennison, Callie",Democratic,5.34,7/22/20 0:00,Actblue,Somerville,CO,2144,Fundraising Expenses,
551,CU Regent  District 02,"Rennison, Callie",Democratic,4.94,7/26/20 0:00,Actblue,Somerville,CO,2144,Fundraising Expenses,
552,CU Regent  District 02,"Rennison, Callie",Democratic,22.74,7/29/20 0:00,Actblue,Somerville,CO,2144,Fundraising Expenses,
553,CU Regent  District 02,"Rennison, Callie",Democratic,8.89,8/2/20 0:00,Actblue,Somerville,CO,2144,Fundraising Expenses,
554,CU Regent  District 02,"Rennison, Callie",Democratic,33.75,8/8/20 0:00,Ampersand Graphic Design,Boulder,CO,80303,Consultant & Professional Services,
555,CU Regent  District 02,"Rennison, Callie",Democratic,20.74,8/9/20 0:00,Actblue,Somerville,CO,2144,Fundraising Expenses,
556,CU Regent  District 02,"Rennison, Callie",Democratic,14.23,8/12/20 0:00,Actblue,Somerville,CO,2144,Fundraising Expenses,
557,CU Regent  District 02,"Rennison, Callie",Democratic,7.9,8/16/20 0:00,Actblue,Somerville,CO,2144,Fundraising Expenses,
558,CU Regent  District 02,"Rennison, Callie",Democratic,5000.0,8/19/20 0:00,Hilltop Public Solutions,Washington,DC,20007,Consultant & Professional Services,
559,CU Regent  District 02,"Rennison, Callie",Democratic,14.23,8/19/20 0:00,Actblue,Somerville,CO,2144,Fundraising Expenses,
561,CU Regent  District 02,"Rennison, Callie",Democratic,5.35,8/23/20 0:00,Actblue,Somerville,CO,2144,Fundraising Expenses,
562,CU Regent  District 02,"Rennison, Callie",Democratic,13.25,8/26/20 0:00,Actblue,Somerville,CO,2144,Fundraising Expenses,
563,CU Regent  District 02,"Rennison, Callie",Democratic,10.08,8/30/20 0:00,Actblue,Somerville,CO,2144,Fundraising Expenses,
564,CU Regent  District 02,"Rennison, Callie",Democratic,150.63,9/1/20 0:00,Ampersand Graphic Design,Boulder,CO,80303,Consultant & Professional Services,
565,CU Regent  District 02,"Rennison, Callie",Democratic,5.34,9/2/20 0:00,Actblue,Somerville,CO,2144,Fundraising Expenses,
566,CU Regent  District 02,"Rennison, Callie",Democratic,2.97,9/6/20 0:00,Actblue,Somerville,CO,2144,Fundraising Expenses,
567,CU Regent  District 02,"Rennison, Callie",Democratic,16.4,9/13/20 0:00,Actblue,Somerville,CO,2144,Fundraising Expenses,
568,CU Regent  District 02,"Rennison, Callie",Democratic,17.79,9/16/20 0:00,Actblue,Somerville,CO,2144,Fundraising Expenses,
569,CU Regent  District 02,"Rennison, Callie",Democratic,0.99,9/20/20 0:00,Actblue,Somerville,CO,2144,Fundraising Expenses,
570,CU Regent  District 02,"Rennison, Callie",Democratic,27.07,9/23/20 0:00,Actblue,Somerville,CO,2144,Fundraising Expenses,
571,CU Regent  District 02,"Rennison, Callie",Democratic,6.53,9/30/20 0:00,Actblue,Somerville,CO,2144,Fundraising Expenses,
574,CU Regent  District 02,"Rennison, Callie",Democratic,23.71,10/6/19 0:00,Actblue,Somerville,CO,2144,Fundraising Expenses,
575,CU Regent  District 02,"Rennison, Callie",Democratic,45.0,10/7/20 0:00,Ampersand Graphic Design,Boulder,CO,80303,Consultant & Professional Services,
576,CU Regent  District 02,"Rennison, Callie",Democratic,2.38,10/7/20 0:00,Actblue,Somerville,CO,2144,Fundraising Expenses,
578,CU Regent  District 02,"Rennison, Callie",Democratic,0.99,10/11/20 0:00,Actblue,Somerville,CO,2144,Fundraising Expenses,
579,CU Regent  District 02,"Rennison, Callie",Democratic,7.9,10/13/19 0:00,Actblue,Somerville,CO,2144,Fundraising Expenses,
580,CU Regent  District 02,"Rennison, Callie",Democratic,1200.0,10/13/20 0:00,A Whole Lot Of People For Change,Centennial,CO,80112,Contributions,
581,CU Regent  District 02,"Rennison, Callie",Democratic,0.4,10/14/20 0:00,Actblue,Somerville,CO,2144,Fundraising Expenses,
583,CU Regent  District 02,"Rennison, Callie",Democratic,1002.68,10/18/19 0:00,Ampersand Graphic Design,Boulder,CO,80303,Consultant & Professional Services,
584,CU Regent  District 02,"Rennison, Callie",Democratic,0.99,10/18/20 0:00,Actblue,Somerville,CO,2144,Fundraising Expenses,
585,CU Regent  District 02,"Rennison, Callie",Democratic,1000.0,10/19/20 0:00,A Whole Lot Of People For Change,Centennial,CO,80112,Donation for Independent Expenditures,
586,CU Regent  District 02,"Rennison, Callie",Democratic,3.95,10/20/19 0:00,Actblue,Somerville,CO,2144,Fundraising Expenses,
587,CU Regent  District 02,"Rennison, Callie",Democratic,2.97,10/21/20 0:00,Actblue,Somerville,CO,2144,Fundraising Expenses,
588,CU Regent  District 02,"Rennison, Callie",Democratic,33.0,10/27/19 0:00,Actblue,Somerville,CO,2144,Fundraising Expenses,
589,CU Regent  District 02,"Rennison, Callie",Democratic,435.0,11/3/19 0:00,Colin  Hornbsy,Denver,CO,80218,Fundraising Expenses,
590,CU Regent  District 02,"Rennison, Callie",Democratic,2.37,11/3/19 0:00,Actblue,Somerville,CO,2144,Fundraising Expenses,
591,CU Regent  District 02,"Rennison, Callie",Democratic,217.54,11/4/19 0:00,Ampersand Graphic Design,Boulder,CO,80303,Fundraising Expenses,
592,CU Regent  District 02,"Rennison, Callie",Democratic,21.34,11/10/19 0:00,Actblue,Somerville,CO,2144,Fundraising Expenses,
594,CU Regent  District 02,"Rennison, Callie",Democratic,10.49,11/17/19 0:00,Actblue,Somerville,CO,2144,Fundraising Expenses,
596,CU Regent  District 02,"Rennison, Callie",Democratic,33.75,11/20/20 0:00,Ampersand Graphic Design,Boulder,CO,80303,Consultant & Professional Services,
597,CU Regent  District 02,"Rennison, Callie",Democratic,1.98,11/22/20 0:00,Actblue,Somerville,CO,2144,Fundraising Expenses,
598,CU Regent  District 02,"Rennison, Callie",Democratic,35.55,11/24/19 0:00,Actblue,Somerville,CO,2144,Fundraising Expenses,
599,CU Regent  District 02,"Rennison, Callie",Democratic,1500.0,11/29/19 0:00,Colin  Hornbsy,Denver,CO,80218,Fundraising Expenses,
600,CU Regent  District 02,"Rennison, Callie",Democratic,1.98,12/1/19 0:00,Actblue,Somerville,CO,2144,Fundraising Expenses,
601,CU Regent  District 02,"Rennison, Callie",Democratic,19.77,12/8/19 0:00,Actblue,Somerville,CO,2144,Fundraising Expenses,
602,CU Regent  District 02,"Rennison, Callie",Democratic,33.75,12/15/19 0:00,Ampersand Graphic Design,Boulder,CO,80303,Consultant & Professional Services,
603,CU Regent  District 02,"Rennison, Callie",Democratic,4.94,12/15/19 0:00,Actblue,Somerville,CO,2144,Fundraising Expenses,
604,CU Regent  District 02,"Rennison, Callie",Democratic,30.0,12/16/19 0:00,Action Network,Washington,DC,20036,Fundraising Expenses,
606,CU Regent  District 02,"Rennison, Callie",Democratic,16.21,12/22/19 0:00,Actblue,Somerville,CO,2144,Fundraising Expenses,
607,CU Regent  District 02,"Rennison, Callie",Democratic,29.05,12/29/19 0:00,Actblue,Somerville,CO,2144,Fundraising Expenses,
608,CU Regent  District 02,"Rennison, Callie",Democratic,17.8,12/31/19 0:00,Actblue,Somerville,CO,2144,Fundraising Expenses,
612,CU Regent District 02,"Gross, David",Democratic,12.0,8/27/19 0:00,,,,,Bank Fees,
613,CU Regent District 02,"Gross, David",Democratic,18.95,8/27/19 0:00,,,,,Office Equipment & Supplies,
620,CU Regent District 02,"Gross, David",Democratic,1675.0,9/11/19 0:00,Superior Blue Strategies,Alexandria,VA,22309,Office Equipment & Supplies,
622,CU Regent District 02,"Gross, David",Democratic,66.17,9/15/19 0:00,Actblue,Somerville,MA,2144,Fundraising Expenses,
624,CU Regent District 02,"Gross, David",Democratic,113.19,9/29/19 0:00,Actblue,Somerville,MA,2144,Fundraising Expenses,
625,CU Regent District 02,"Gross, David",Democratic,46.42,9/30/19 0:00,Actblue,Somerville,MA,2144,Fundraising Expenses,
627,CU Regent District 02,"Gross, David",Democratic,1500.0,1/5/20 0:00,Chris  Nicholson,Denver,CO,80202,Consultant & Professional Services,
633,CU Regent District 02,"Gross, David",Democratic,2300.0,1/21/20 0:00,Civic Centered Consulting,Denver,CO,80203,Consultant & Professional Services,
641,CU Regent District 02,"Gross, David",Democratic,1500.0,2/6/20 0:00,Chris  Nicholson,Denver,CO,80202,Consultant & Professional Services,
646,CU Regent District 02,"Gross, David",Democratic,2300.0,2/18/20 0:00,Civic Centered Consulting,Denver,CO,80203,Consultant & Professional Services,
657,CU Regent District 02,"Gross, David",Democratic,350.0,3/13/20 0:00,Evan Semon Photography,Denver,CO,80220,Consultant & Professional Services,
659,CU Regent District 02,"Gross, David",Democratic,1500.0,3/16/20 0:00,Chris  Nicholson,Denver,CO,80202,Consultant & Professional Services,
660,CU Regent District 02,"Gross, David",Democratic,2300.0,3/23/20 0:00,Civic Centered Consulting,Denver,CO,80203,Consultant & Professional Services,
665,CU Regent District 02,"Gross, David",Democratic,2250.0,4/2/20 0:00,Chris  Nicholson,Denver,CO,80202,Consultant & Professional Services,
666,CU Regent District 02,"Gross, David",Democratic,2300.0,4/16/20 0:00,Civic Centered Consulting,Denver,CO,80203,Consultant & Professional Services,
672,CU Regent District 02,"Gross, David",Democratic,2250.0,5/6/20 0:00,Chris  Nicholson,Denver,CO,80202,Consultant & Professional Services,
678,CU Regent District 02,"Gross, David",Democratic,2300.0,5/22/20 0:00,Civic Centered Consulting,Denver,CO,80203,Consultant & Professional Services,
687,CU Regent District 02,"Gross, David",Democratic,2250.0,6/1/20 0:00,Chris  Nicholson,Denver,CO,80202,Consultant & Professional Services,
721,CU Regent District 02,"Gross, David",Democratic,22.75,6/25/20 0:00,First Bank,Broomfield,CO,80020,Bank Fees,
735,CU Regent District 02,"Gross, David",Democratic,2300.0,7/1/20 0:00,Civic Centered Consulting,Denver,CO,80203,Consultant & Professional Services,
737,CU Regent District 02,"Gross, David",Democratic,4720.0,7/2/20 0:00,Chris  Nicholson,Denver,CO,80202,Consultant & Professional Services,
739,CU Regent District 02,"Gross, David",Democratic,110.0,7/28/20 0:00,First Bank,Broomfield,CO,80020,Bank Fees,
740,CU Regent District 02,"Gross, David",Democratic,98.25,7/31/20 0:00,Facebook,Menlo Park,CA,94025,Advertising,
741,CU Regent District 02,"Gross, David",Democratic,2.0,8/25/20 0:00,First Bank,Broomfield,CO,80020,Bank Fees,
743,CU Regent District 02,"Gross, David",Democratic,2800.0,10/1/19 0:00,Civic Centered Consulting,Denver,CO,80203,Consultant & Professional Services,
746,CU Regent District 02,"Gross, David",Democratic,500.0,10/7/19 0:00,Rkg Development,Lafayette,CO,80026,Consultant & Professional Services,
751,CU Regent District 02,"Gross, David",Democratic,2800.0,10/31/19 0:00,Civic Centered Consulting,Denver,CO,80203,Consultant & Professional Services,
754,CU Regent District 02,"Gross, David",Democratic,500.0,11/12/19 0:00,Rkg Development,Lafayette,CO,80026,Consultant & Professional Services,
755,CU Regent District 02,"Gross, David",Democratic,2.45,11/13/19 0:00,4Degrees,Lakewood,CO,80226,Consultant & Professional Services,
759,CU Regent District 02,"Gross, David",Democratic,2800.0,12/3/19 0:00,Civic Centered Consulting,Denver,CO,80203,Consultant & Professional Services,
760,CU Regent District 02,"Gross, David",Democratic,500.0,12/3/19 0:00,Rkg Development,Lafayette,CO,80026,Consultant & Professional Services,
761,CU Regent District 02,"Gross, David",Democratic,500.0,12/3/19 0:00,Chris  Nicholsan,Denver,CO,80212,Consultant & Professional Services,
765,CU Regent District 02,"Gross, David",Democratic,2800.0,12/17/19 0:00,Civic Centered Consulting,Denver,CO,80203,Consultant & Professional Services,
772,CU Regent District 02,"Harber, Aaron",Democratic,9.9,1/31/20 0:00,Great Western Bank,Lafayette,CO,80026,Bank Fees,
774,CU Regent District 02,"Harber, Aaron",Democratic,9000.0,2/28/20 0:00,Taylor Petition Management Llc,Colorado Springs,CO,80921,Consultant & Professional Services,
775,CU Regent District 02,"Harber, Aaron",Democratic,4.95,2/29/20 0:00,Great Western Bank,Lafayette,CO,80026,Bank Fees,
777,CU Regent District 02,"Harber, Aaron",Democratic,400.0,3/17/20 0:00,Taylor Petition Management Llc,Colorado Springs,CO,80921,Consultant & Professional Services,
778,CU Regent District 02,"Harber, Aaron",Democratic,200.0,3/20/20 0:00,Bunnie  Strassner,Erie,CO,80516,Consultant & Professional Services,
779,CU Regent District 02,"Harber, Aaron",Democratic,4.95,3/31/20 0:00,Great Western Bank,Lafayette,CO,80026,Bank Fees,
782,CU Regent District 02,"Harber, Aaron",Democratic,77.67,4/30/20 0:00,Boulder Valley School District,Boulder,CO,80303,Rent & Utilities,
784,CU Regent District 02,"Harber, Aaron",Democratic,349.0,5/14/20 0:00,Active Campaign,Chicago,IL,60602,Consultant & Professional Services,
785,CU Regent District 02,"Harber, Aaron",Democratic,3049.0,5/15/20 0:00,Text Request,Chattanooga,TN,37408,Consultant & Professional Services,
786,CU Regent District 02,"Harber, Aaron",Democratic,89.0,5/27/20 0:00,Active Campaign,Chicago,IL,60602,Miscellaneous,
787,CU Regent District 02,"Harber, Aaron",Democratic,82.0,5/27/20 0:00,Alibaba,969 West Wen Yi Road,HA,311121,Office Equipment & Supplies,
788,CU Regent District 02,"Harber, Aaron",Democratic,5000.0,5/28/20 0:00,Effct Llc,Denver,CO,80204,Consultant & Professional Services,
790,CU Regent District 02,"Harber, Aaron",Democratic,599.0,6/1/20 0:00,Active Campaign,Chicago,IL,60602,Consultant & Professional Services,
803,CU Regent District 02,"Harber, Aaron",Democratic,9.9,6/30/20 0:00,,,,,Bank Fees,
807,CU Regent District 02,"Harber, Aaron",Democratic,9.9,8/31/20 0:00,,,,,Bank Fees,
808,CU Regent District 02,"Harber, Aaron",Democratic,4.95,9/30/20 0:00,,,,,Bank Fees,
810,CU Regent District 02,"Harber, Aaron",Democratic,6.93,11/30/20 0:00,,,,,Bank Fees,
812,CU Regent District 02,"Vernaza, Christian",Libertarian,,,,,,,,
819,CU Regent District 06,"Spiegel, Ilana",Democratic,1500.0,6/25/19 0:00,Bold Text Llc,Parker,CO,80138,Consultant & Professional Services,
822,CU Regent District 06,"Spiegel, Ilana",Democratic,5.4,7/3/19 0:00,,,,,"Food, Beverages and Meals",
825,CU Regent District 06,"Spiegel, Ilana",Democratic,3000.0,7/25/19 0:00,Engage Strategies Llc,Denver,CO,80202,Consultant & Professional Services,
827,CU Regent District 06,"Spiegel, Ilana",Democratic,500.0,8/12/19 0:00,Bold Text Llc,Parker,CO,80138,Consultant & Professional Services,
828,CU Regent District 06,"Spiegel, Ilana",Democratic,400.0,8/28/19 0:00,Insync Photography,Denver,CO,80237,Consultant & Professional Services,
829,CU Regent District 06,"Spiegel, Ilana",Democratic,30.0,9/3/19 0:00,Ngp Van,Washington,DC,20005,Advertising,
830,CU Regent District 06,"Spiegel, Ilana",Democratic,1700.0,9/13/19 0:00,Engage Strategies Llc,Denver,CO,80202,Consultant & Professional Services,
832,CU Regent District 06,"Spiegel, Ilana",Democratic,61.84,1/2/20 0:00,Google Llc,Mountain View,CA,94043,Office Equipment & Supplies,
833,CU Regent District 06,"Spiegel, Ilana",Democratic,3451.43,1/10/20 0:00,Engage Strategies Llc,Denver,CO,80202,Consultant & Professional Services,
834,CU Regent District 06,"Spiegel, Ilana",Democratic,144.0,1/26/20 0:00,Insync Photography,Denver,CO,80237,Consultant & Professional Services,
835,CU Regent District 06,"Spiegel, Ilana",Democratic,62.05,2/3/20 0:00,Google Llc,Mountain View,CA,94043,Advertising,
836,CU Regent District 06,"Spiegel, Ilana",Democratic,3822.5,2/6/20 0:00,Engage Strategies Llc,Denver,CO,80202,Consultant & Professional Services,
837,CU Regent District 06,"Spiegel, Ilana",Democratic,292.5,2/24/20 0:00,Jefferson Prescott Strategies,Aurora,CO,80012,Consultant & Professional Services,
838,CU Regent District 06,"Spiegel, Ilana",Democratic,62.11,3/2/20 0:00,Google Llc,Mountain View,CA,94043,Advertising,
839,CU Regent District 06,"Spiegel, Ilana",Democratic,2160.55,3/2/20 0:00,Engage Strategies Llc,Denver,CO,80202,Consultant & Professional Services,
840,CU Regent District 06,"Spiegel, Ilana",Democratic,500.0,4/1/20 0:00,Jessica  Chauvin,Aurora,CO,80011,Consultant & Professional Services,
841,CU Regent District 06,"Spiegel, Ilana",Democratic,1518.99,4/1/20 0:00,Engage Strategies Llc,Denver,CO,80202,Consultant & Professional Services,
842,CU Regent District 06,"Spiegel, Ilana",Democratic,61.85,4/2/20 0:00,Google Llc,Mountain View,CA,94043,Advertising,
843,CU Regent District 06,"Spiegel, Ilana",Democratic,8.4,4/3/20 0:00,Ngp Van,Washington,DC,20005,Consultant & Professional Services,
844,CU Regent District 06,"Spiegel, Ilana",Democratic,45.0,4/26/20 0:00,Jefferson Prescott Strategies,Aurora,CO,80012,Consultant & Professional Services,
845,CU Regent District 06,"Spiegel, Ilana",Democratic,420.14,4/29/20 0:00,Act Blue,Somerville,MA,2144,Bank Fees,
846,CU Regent District 06,"Spiegel, Ilana",Democratic,1500.0,5/1/20 0:00,Engage Strategies Llc,Denver,CO,80202,Consultant & Professional Services,
847,CU Regent District 06,"Spiegel, Ilana",Democratic,61.94,5/4/20 0:00,Google Llc,Mountain View,CA,94043,Office Equipment & Supplies,
848,CU Regent District 06,"Spiegel, Ilana",Democratic,4.0,5/12/20 0:00,,,,,Bank Fees,
849,CU Regent District 06,"Spiegel, Ilana",Democratic,100.0,5/12/20 0:00,The Center On Colfax,Denver,CO,80218,Advertising,
850,CU Regent District 06,"Spiegel, Ilana",Democratic,30.26,5/13/20 0:00,Act Blue,Somerville,MA,2144,Bank Fees,
851,CU Regent District 06,"Spiegel, Ilana",Democratic,29.99,5/14/20 0:00,Mailchimp,Atlanta,GA,30308,Advertising,
852,CU Regent District 06,"Spiegel, Ilana",Democratic,17.02,5/28/20 0:00,Act Blue,Somerville,MA,2144,Bank Fees,
853,CU Regent District 06,"Spiegel, Ilana",Democratic,500.0,6/1/20 0:00,Jessica  Chauvin,Aurora,CO,80011,Consultant & Professional Services,
854,CU Regent District 06,"Spiegel, Ilana",Democratic,62.0,6/2/20 0:00,Google Llc,Mountain View,CA,94043,Advertising,
855,CU Regent District 06,"Spiegel, Ilana",Democratic,75.78,6/10/20 0:00,Act Blue,Somerville,MA,2144,Bank Fees,
856,CU Regent District 06,"Spiegel, Ilana",Democratic,1500.0,6/15/20 0:00,Engage Strategies Llc,Denver,CO,80202,Consultant & Professional Services,
857,CU Regent District 06,"Spiegel, Ilana",Democratic,29.99,6/15/20 0:00,Mailchimp,Atlanta,GA,30308,Advertising,
858,CU Regent District 06,"Spiegel, Ilana",Democratic,62.44,6/25/20 0:00,Act Blue,Somerville,MA,2144,Bank Fees,
859,CU Regent District 06,"Spiegel, Ilana",Democratic,63.01,7/2/20 0:00,Google Llc,Mountain View,CA,94043,Advertising,
861,CU Regent District 06,"Spiegel, Ilana",Democratic,29.99,7/15/20 0:00,Mailchimp,Atlanta,GA,30308,Advertising,
862,CU Regent District 06,"Spiegel, Ilana",Democratic,2500.0,7/18/20 0:00,Engage Strategies Llc,Denver,CO,80202,Consultant & Professional Services,
863,CU Regent District 06,"Spiegel, Ilana",Democratic,151.6,7/27/20 0:00,Act Blue,Somerville,MA,2144,Bank Fees,
864,CU Regent District 06,"Spiegel, Ilana",Democratic,100.0,8/2/20 0:00,Emma  Carroll,Centennial,CO,80112,Consultant & Professional Services,
865,CU Regent District 06,"Spiegel, Ilana",Democratic,495.0,8/4/20 0:00,Jefferson Prescott Strategies,Aurora,CO,80012,Consultant & Professional Services,
866,CU Regent District 06,"Spiegel, Ilana",Democratic,29.99,8/14/20 0:00,Mailchimp,Atlanta,GA,30308,Advertising,
867,CU Regent District 06,"Spiegel, Ilana",Democratic,5428.88,8/19/20 0:00,Engage Strategies Llc,Denver,CO,80202,Consultant & Professional Services,
868,CU Regent District 06,"Spiegel, Ilana",Democratic,11870.0,8/24/20 0:00,Blue Summit Consultants,Highlands Ranch,CO,80129,Consultant & Professional Services,
869,CU Regent District 06,"Spiegel, Ilana",Democratic,62.39,9/2/20 0:00,Google Llc,Mountain View,CA,94043,Advertising,
870,CU Regent District 06,"Spiegel, Ilana",Democratic,2250.0,9/3/20 0:00,Five Star Campaigns,Denver,CO,80206,Consultant & Professional Services,
872,CU Regent District 06,"Spiegel, Ilana",Democratic,1399.0,9/4/20 0:00,Jessica  Chauvin,Aurora,CO,80011,Consultant & Professional Services,
873,CU Regent District 06,"Spiegel, Ilana",Democratic,549.0,9/4/20 0:00,Emma  Carroll,Centennial,CO,80112,Consultant & Professional Services,
874,CU Regent District 06,"Spiegel, Ilana",Democratic,840.0,9/4/20 0:00,Ngp Van,Washington,DC,20005,Advertising,
875,CU Regent District 06,"Spiegel, Ilana",Democratic,4.0,9/11/20 0:00,,,,,Bank Fees,
876,CU Regent District 06,"Spiegel, Ilana",Democratic,29.99,9/14/20 0:00,Mailchimp,Atlanta,GA,30308,Advertising,
881,CU Regent District 06,"Spiegel, Ilana",Democratic,210.0,9/26/20 0:00,Ngp Van,Washington,DC,20005,Advertising,
883,CU Regent District 06,"Spiegel, Ilana",Democratic,649.0,10/1/20 0:00,Emma  Carroll,Centennial,CO,80112,Employee Services,
884,CU Regent District 06,"Spiegel, Ilana",Democratic,30.0,10/2/19 0:00,Ngp Van,Washington,DC,20005,Advertising,
886,CU Regent District 06,"Spiegel, Ilana",Democratic,52.43,10/5/20 0:00,Google Llc,Mountain View,CA,94043,Advertising,
887,CU Regent District 06,"Spiegel, Ilana",Democratic,84.0,10/7/20 0:00,Ngp Van,Washington,DC,20005,Advertising,
891,CU Regent District 06,"Spiegel, Ilana",Democratic,1500.0,10/9/20 0:00,Colorado Democratic Party,Denver,CO,80203,Advertising,
892,CU Regent District 06,"Spiegel, Ilana",Democratic,500.0,10/13/20 0:00,Jefferson Prescott Strategies,Aurora,CO,80012,Consultant & Professional Services,
893,CU Regent District 06,"Spiegel, Ilana",Democratic,29.99,10/14/20 0:00,Mailchimp,Atlanta,GA,30308,Advertising,
896,CU Regent District 06,"Spiegel, Ilana",Democratic,874.01,10/16/20 0:00,Community Labor Administrative Services,Brooklyn,NY,11201,Employee Services,
897,CU Regent District 06,"Spiegel, Ilana",Democratic,10465.0,10/18/20 0:00,Blue Summit Consultants,Highlands Ranch,CO,80129,Consultant & Professional Services,
900,CU Regent District 06,"Spiegel, Ilana",Democratic,8.5,10/26/20 0:00,,,,,Office Equipment & Supplies,
902,CU Regent District 06,"Spiegel, Ilana",Democratic,62.51,11/2/20 0:00,Google Llc,Mountain View,CA,94043,Advertising,
903,CU Regent District 06,"Spiegel, Ilana",Democratic,62.26,11/4/19 0:00,Google Llc,Mountain View,CA,94043,Office Equipment & Supplies,
904,CU Regent District 06,"Spiegel, Ilana",Democratic,30.0,11/4/19 0:00,Ngp Van,Washington,DC,20005,Advertising,
905,CU Regent District 06,"Spiegel, Ilana",Democratic,2250.0,11/9/20 0:00,Five Star Campaigns,Denver,CO,80206,Consultant & Professional Services,
906,CU Regent District 06,"Spiegel, Ilana",Democratic,4.0,11/12/20 0:00,,,,,Bank Fees,
907,CU Regent District 06,"Spiegel, Ilana",Democratic,649.0,11/13/20 0:00,Emma  Carroll,Centennial,CO,80112,Consultant & Professional Services,
908,CU Regent District 06,"Spiegel, Ilana",Democratic,30.99,11/16/20 0:00,Mailchimp,Atlanta,GA,30308,Advertising,
909,CU Regent District 06,"Spiegel, Ilana",Democratic,1500.0,11/18/19 0:00,Engage Strategies Llc,Denver,CO,80202,Consultant & Professional Services,
910,CU Regent District 06,"Spiegel, Ilana",Democratic,1500.0,11/18/19 0:00,Engage Strategies Llc,Denver,CO,80202,Consultant & Professional Services,
911,CU Regent District 06,"Spiegel, Ilana",Democratic,48.32,11/26/20 0:00,Act Blue,Somerville,MA,2144,Bank Fees,
912,CU Regent District 06,"Spiegel, Ilana",Democratic,30.0,12/2/19 0:00,Ngp Van,Washington,DC,20005,Advertising,
913,CU Regent District 06,"Spiegel, Ilana",Democratic,62.26,12/2/19 0:00,Google Llc,Mountain View,CA,94043,Office Equipment & Supplies,
1049,CU Regent District 06,"Murray, Richard",Republican,3.45,10/11/20 0:00,Winred,Arlington,VA,22219,Bank Fees,
1055,CU Regent District 06,"Murray, Richard",Republican,1075.0,11/12/20 0:00,Cuttr Consulting,Colorado Springs,CO,80905,Consultant & Professional Services,
1056,CU Regent District 06,"Murray, Richard",Republican,639.1,11/18/20 0:00,Sws Polifi Llc,Fort Lupton,CO,80621,Consultant & Professional Services,
1168,CU Regent District 06,"Rahn, Priscilla",Republican,150.0,6/28/20 0:00,Sws Polifi Llc,Fort Lupton,CO,80621,Consultant & Professional Services,
1169,CU Regent District 06,"Rahn, Priscilla",Republican,138.05,6/29/20 0:00,My Soapbox Llc,Camacillo,CA,93010,Consultant & Professional Services,
1170,CU Regent District 06,"Rahn, Priscilla",Republican,126.82,7/1/20 0:00,Facebook,Menlo Park,CA,94025,Advertising,
1196,CU Regent District 07,"Chavez, Nolbert",Democratic,1174.89,2/13/20 0:00,Gamino Printing,Denver,CO,80233,Advertising,
1197,CU Regent District 07,"Chavez, Nolbert",Democratic,229.37,2/29/20 0:00,Gamino Printing,Denver,CO,80233,Advertising,
635,CU Regent District 02,"Gross, David",Democratic,4.58,1/24/20 0:00,,,,,Miscellaneous,1099 Software
406,Bd. Ed. District 07,"Esser, Karla",Democratic,6.65,10/2/19 0:00,Us Postal Service,Lakewood,CO,80228,Office Equipment & Supplies,19 Postcard Stamps For Mailing Thank You Cards
372,Bd. Ed. District 07,"Esser, Karla",Democratic,70.0,5/8/20 0:00,Us Postal Service,Denver,CO,80227,Advertising,200 Postcard Stamps
400,Bd. Ed. District 07,"Esser, Karla",Democratic,700.0,9/18/20 0:00,Us Postal Service,Lakewood,CO,80226,Advertising,2000 Postcard Stamps
407,Bd. Ed. District 07,"Esser, Karla",Democratic,700.0,10/3/20 0:00,Us Postal Service,Lakewood,CO,80226,Advertising,2000 Postcard Stamps
410,Bd. Ed. District 07,"Esser, Karla",Democratic,700.0,10/5/20 0:00,Us Postal Service,Lakewood,CO,80226,Advertising,2000 Postcard Stamps
344,Bd. Ed. District 07,"Esser, Karla",Democratic,17.15,1/2/20 0:00,Us Postal Service,Denver,CO,80227,Office Equipment & Supplies,40 Postcard Stamps
384,Bd. Ed. District 07,"Esser, Karla",Democratic,140.0,7/27/20 0:00,Us Postal Service,Lakewood,CO,80226,Advertising,400 Postcard Stamps
353,Bd. Ed. District 07,"Esser, Karla",Democratic,45.0,2/5/20 0:00,Us Postal Service,Lakewood,CO,80226,Office Equipment & Supplies,50 Postcards And 50 Stamps
377,Bd. Ed. District 07,"Esser, Karla",Democratic,479.81,6/1/20 0:00,Engage Strategies Llc,Denver,CO,80202,Fundraising Expenses,"5000 Postcards
Check #1009
Invoice #184"
945,CU Regent District 06,"Murray, Richard",Republican,2675.1,3/3/20 0:00,University Of Colorado,Boulder,CO,80309,Other,5140 ∑ Event Food & Beverage
963,CU Regent District 06,"Murray, Richard",Republican,45.12,4/21/20 0:00,The Starboard Group,Greenwood Village,CO,80111,Other,5190 ∑ Other Event Expense
385,Bd. Ed. District 07,"Esser, Karla",Democratic,210.0,8/4/20 0:00,Us Postal Service,Lakewood,CO,80226,Advertising,600 Postcard Stamps
1155,CU Regent District 06,"Rahn, Priscilla",Republican,1347.25,6/1/20 0:00,Effectv East,Denver,CO,80202,Other,6111 ∑ Time Buys
981,CU Regent District 06,"Murray, Richard",Republican,3050.0,5/20/20 0:00,Legacy Consulting Llc,Englewood,CO,80113,Other,6141 ∑ Space Buys
992,CU Regent District 06,"Murray, Richard",Republican,3750.0,6/3/20 0:00,Legacy Consulting Llc,Englewood,CO,80113,Other,6141 ∑ Space Buys
995,CU Regent District 06,"Murray, Richard",Republican,2787.78,6/12/20 0:00,Legacy Consulting Llc,Englewood,CO,80113,Other,6141 ∑ Space Buys
1120,CU Regent District 06,"Rahn, Priscilla",Republican,2.0,4/21/20 0:00,Facebook,Menlo Park,CA,94025,Other,6141 ∑ Space Buys
1122,CU Regent District 06,"Rahn, Priscilla",Republican,4.0,4/22/20 0:00,Facebook,Menlo Park,CA,94025,Other,6141 ∑ Space Buys
1124,CU Regent District 06,"Rahn, Priscilla",Republican,6.0,4/23/20 0:00,Facebook,Menlo Park,CA,94025,Other,6141 ∑ Space Buys
1125,CU Regent District 06,"Rahn, Priscilla",Republican,5.0,4/24/20 0:00,Facebook,Menlo Park,CA,94025,Other,6141 ∑ Space Buys
1128,CU Regent District 06,"Rahn, Priscilla",Republican,17.0,4/27/20 0:00,Facebook,Menlo Park,CA,94025,Other,6141 ∑ Space Buys
1129,CU Regent District 06,"Rahn, Priscilla",Republican,30.0,4/29/20 0:00,Facebook,Menlo Park,CA,94025,Other,6141 ∑ Space Buys
1131,CU Regent District 06,"Rahn, Priscilla",Republican,25.0,4/30/20 0:00,Facebook,Menlo Park,CA,94025,Other,6141 ∑ Space Buys
1133,CU Regent District 06,"Rahn, Priscilla",Republican,85.0,5/4/20 0:00,Facebook,Menlo Park,CA,94025,Other,6141 ∑ Space Buys
1138,CU Regent District 06,"Rahn, Priscilla",Republican,75.0,5/8/20 0:00,Facebook,Menlo Park,CA,94025,Other,6141 ∑ Space Buys
1142,CU Regent District 06,"Rahn, Priscilla",Republican,75.0,5/12/20 0:00,Facebook,Menlo Park,CA,94025,Other,6141 ∑ Space Buys
1148,CU Regent District 06,"Rahn, Priscilla",Republican,433.97,5/22/20 0:00,Facebook,Menlo Park,CA,94025,Other,6141 ∑ Space Buys
1157,CU Regent District 06,"Rahn, Priscilla",Republican,125.0,6/1/20 0:00,Facebook,Menlo Park,CA,94025,Other,6141 ∑ Space Buys
1158,CU Regent District 06,"Rahn, Priscilla",Republican,23.47,6/1/20 0:00,Facebook,Menlo Park,CA,94025,Other,6141 ∑ Space Buys
1167,CU Regent District 06,"Rahn, Priscilla",Republican,175.0,6/22/20 0:00,Facebook,Menlo Park,CA,94025,Other,6141 ∑ Space Buys
1052,CU Regent District 06,"Murray, Richard",Republican,500.0,10/19/20 0:00,Legacy Consulting Llc,Englewood,CO,80113,Other,6190 ∑ Other Media Expense
1053,CU Regent District 06,"Murray, Richard",Republican,500.0,10/20/20 0:00,Legacy Consulting Llc,Englewood,CO,80113,Other,6190 ∑ Other Media Expense
1095,CU Regent District 06,"Rahn, Priscilla",Republican,110.0,3/6/20 0:00,Us Postal Service,Highlands Ranch,CO,80130,Other,6213 ∑ Postage
1098,CU Regent District 06,"Rahn, Priscilla",Republican,55.0,3/17/20 0:00,Us Postal Service,Highlands Ranch,CO,80130,Other,6213 ∑ Postage
1099,CU Regent District 06,"Rahn, Priscilla",Republican,55.0,3/17/20 0:00,Us Postal Service,Highlands Ranch,CO,80130,Other,6213 ∑ Postage
1100,CU Regent District 06,"Rahn, Priscilla",Republican,55.0,3/20/20 0:00,Us Postal Service,Highlands Ranch,CO,80130,Other,6213 ∑ Postage
1102,CU Regent District 06,"Rahn, Priscilla",Republican,4.55,3/24/20 0:00,Us Postal Service,Highlands Ranch,CO,80130,Other,6213 ∑ Postage
1103,CU Regent District 06,"Rahn, Priscilla",Republican,3.5,3/24/20 0:00,Us Postal Service,Highlands Ranch,CO,80130,Other,6213 ∑ Postage
1105,CU Regent District 06,"Rahn, Priscilla",Republican,74.25,3/31/20 0:00,Us Postal Service,Highlands Ranch,CO,80130,Other,6213 ∑ Postage
1109,CU Regent District 06,"Rahn, Priscilla",Republican,6.0,4/2/20 0:00,Us Postal Service,Highlands Ranch,CO,80130,Other,6213 ∑ Postage
958,CU Regent District 06,"Murray, Richard",Republican,241.48,4/9/20 0:00,Wizbang Solutions Inc,Commerce City,CO,80022,Other,6221 ∑ Printing
961,CU Regent District 06,"Murray, Richard",Republican,241.18,4/9/20 0:00,Wizbang Solutions Inc,Commerce City,CO,80022,Other,6221 ∑ Printing
1136,CU Regent District 06,"Rahn, Priscilla",Republican,231.62,5/7/20 0:00,Vistaprint,Lexington,MA,2421,Other,6221 ∑ Printing
1101,CU Regent District 06,"Rahn, Priscilla",Republican,40.0,3/24/20 0:00,Conrad Limited,Pueblo West,CO,81007,Other,6300 ∑ Photography Expense
1042,CU Regent District 06,"Murray, Richard",Republican,12.78,9/30/20 0:00,Google,Mountain View,CA,94043,Other,6410 ∑ Registration & Hosting
1043,CU Regent District 06,"Murray, Richard",Republican,12.0,9/30/20 0:00,Google,Mountain View,CA,94043,Other,6410 ∑ Registration & Hosting
1181,CU Regent District 06,"Rahn, Priscilla",Republican,51.04,12/13/19 0:00,Godaddy,Scottsdale,AZ,85260,Other,6490 ∑ Other Website Expense
1189,CU Regent District 06,"Rahn, Priscilla",Republican,600.0,12/22/19 0:00,Godaddy,Scottsdale,AZ,85260,Other,6490 ∑ Other Website Expense
1078,CU Regent District 06,"Rahn, Priscilla",Republican,315.91,2/11/20 0:00,Vistaprint,Lexington,MA,2421,Other,6611 ∑ Letterhead & Envelopes
1184,CU Regent District 06,"Rahn, Priscilla",Republican,72.69,12/18/19 0:00,Fort Lupton Pack & Ship,Fort Lupton,CO,80621,Other,6611 ∑ Letterhead & Envelopes
1079,CU Regent District 06,"Rahn, Priscilla",Republican,166.98,2/15/20 0:00,Vistaprint,Lexington,MA,2421,Other,6612 ∑ Business Cards
1179,CU Regent District 06,"Rahn, Priscilla",Republican,50.7,12/10/19 0:00,Gotprint.Com,Burbank,CA,91505,Other,6612 ∑ Business Cards
940,CU Regent District 06,"Murray, Richard",Republican,248.57,2/28/20 0:00,Office Depot,Denver,CO,80202,Other,6614 ∑ Flyers
1069,CU Regent District 06,"Rahn, Priscilla",Republican,41.27,1/24/20 0:00,Office Depot,Littleton,CO,80122,Other,6614 ∑ Flyers
1072,CU Regent District 06,"Rahn, Priscilla",Republican,16.03,1/27/20 0:00,Office Depot,Littleton,CO,80122,Other,6614 ∑ Flyers
1074,CU Regent District 06,"Rahn, Priscilla",Republican,27.25,1/28/20 0:00,Office Depot,Littleton,CO,80122,Other,6614 ∑ Flyers
1080,CU Regent District 06,"Rahn, Priscilla",Republican,313.71,2/17/20 0:00,Office Depot,Littleton,CO,80122,Other,6614 ∑ Flyers
1091,CU Regent District 06,"Rahn, Priscilla",Republican,73.22,3/6/20 0:00,Office Depot,Littleton,CO,80122,Other,6614 ∑ Flyers
1097,CU Regent District 06,"Rahn, Priscilla",Republican,44.93,3/16/20 0:00,Office Depot,Littleton,CO,80122,Other,6614 ∑ Flyers
1040,CU Regent District 06,"Murray, Richard",Republican,499.9,9/29/20 0:00,Laird Plastics,Denver,CO,80239,Other,6621 ∑ Yard Signs
1089,CU Regent District 06,"Rahn, Priscilla",Republican,174.53,3/4/20 0:00,Altitude Denver Graphics,Englewood,CO,80110,Other,6621 ∑ Yard Signs
1180,CU Regent District 06,"Rahn, Priscilla",Republican,121.8,12/10/19 0:00,Sbw Graphics,Fort Lupton,CO,80621,Other,6623 ∑ Banners
1083,CU Regent District 06,"Rahn, Priscilla",Republican,498.0,2/21/20 0:00,Emdem Apparel,Valley Villagge,CA,91607,Other,6631 ∑ Apparel
1039,CU Regent District 06,"Murray, Richard",Republican,125.0,9/28/20 0:00,Harmony Design Llc,Englewood,CO,80111,Other,6640 ∑ Design & Layout
1171,CU Regent District 06,"Rahn, Priscilla",Republican,275.0,11/7/19 0:00,Logo Tournament,Kelowna,BC,80201,Other,6640 ∑ Design & Layout
1094,CU Regent District 06,"Rahn, Priscilla",Republican,176.18,3/6/20 0:00,Pancake House,Greenwood Village,CO,80111,Other,6730 ∑ Volunteer Recruitment
1048,CU Regent District 06,"Murray, Richard",Republican,5025.52,10/9/20 0:00,Legacy Consulting Llc,Englewood,CO,80113,Other,6830 ∑ Advertising Expense
1088,CU Regent District 06,"Rahn, Priscilla",Republican,100.0,3/3/20 0:00,Theeductr,Aurora,CO,80013,Other,6830 ∑ Advertising Expense
1185,CU Regent District 06,"Rahn, Priscilla",Republican,72.8,12/18/19 0:00,Little Ollies Asian Grill,Denver,CO,80206,Other,6890 ∑ Other Meeting Expense
1058,CU Regent District 06,"Rahn, Priscilla",Republican,4.18,1/3/20 0:00,,,,,Other,7214 ∑ Office Supplies
1172,CU Regent District 06,"Rahn, Priscilla",Republican,9.1,11/13/19 0:00,,,,,Other,7214 ∑ Office Supplies
1060,CU Regent District 06,"Rahn, Priscilla",Republican,500.0,1/4/20 0:00,"Sws Polifi, Llc",Fort Lupton,CO,80621,Other,7410 ∑ General Consultants
1093,CU Regent District 06,"Rahn, Priscilla",Republican,1000.0,3/6/20 0:00,Conrad Limited,Pueblo West,CO,81007,Other,7410 ∑ General Consultants
1108,CU Regent District 06,"Rahn, Priscilla",Republican,1000.0,4/2/20 0:00,Conrad Limited,Pueblo West,CO,81007,Other,7410 ∑ General Consultants
1134,CU Regent District 06,"Rahn, Priscilla",Republican,1000.0,5/4/20 0:00,Conrad Limited,Pueblo West,CO,81007,Other,7410 ∑ General Consultants
1190,CU Regent District 06,"Rahn, Priscilla",Republican,500.0,12/24/19 0:00,"Sws Polifi, Llc",Lafayette,CO,80026,Other,7410 ∑ General Consultants
1001,CU Regent District 06,"Murray, Richard",Republican,4162.78,7/2/20 0:00,Legacy Consulting Llc,Englewood,CO,80113,Other,7420 ∑ Media Consultants
1047,CU Regent District 06,"Murray, Richard",Republican,1575.0,10/7/20 0:00,Cuttr Consulting,Colorado Springs,CO,80905,Other,7420 ∑ Media Consultants
943,CU Regent District 06,"Murray, Richard",Republican,750.0,3/2/20 0:00,The Starboard Group,Greenwood Village,CO,80111,Other,7430 ∑ Fundraising Consultants
944,CU Regent District 06,"Murray, Richard",Republican,742.5,3/2/20 0:00,The Starboard Group,Greenwood Village,CO,80111,Other,7430 ∑ Fundraising Consultants
964,CU Regent District 06,"Murray, Richard",Republican,3342.5,4/21/20 0:00,The Starboard Group,Greenwood Village,CO,80111,Other,7430 ∑ Fundraising Consultants
1062,CU Regent District 06,"Rahn, Priscilla",Republican,219.5,1/4/20 0:00,"Sws Polifi, Llc",Fort Lupton,CO,80621,Other,7430 ∑ Fundraising Consultants
946,CU Regent District 06,"Murray, Richard",Republican,2550.0,3/3/20 0:00,Roger  Hudson,Castle Pines,CO,80108,Other,7440 ∑ Communications Consultants
955,CU Regent District 06,"Murray, Richard",Republican,750.0,4/7/20 0:00,Roger  Hudson,Castle Pines,CO,80108,Other,7440 ∑ Communications Consultants
956,CU Regent District 06,"Murray, Richard",Republican,2550.0,4/9/20 0:00,Roger  Hudson,Castle Pines,CO,80108,Other,7440 ∑ Communications Consultants
971,CU Regent District 06,"Murray, Richard",Republican,750.0,5/6/20 0:00,Roger  Hudson,Castle Pines,CO,80108,Other,7440 ∑ Communications Consultants
1007,CU Regent District 06,"Murray, Richard",Republican,143.5,7/31/20 0:00,Roger  Hudson,Castle Pines,CO,80108,Other,7440 ∑ Communications Consultants
1008,CU Regent District 06,"Murray, Richard",Republican,750.0,7/31/20 0:00,Roger  Hudson,Castle Pines,CO,80108,Other,7440 ∑ Communications Consultants
1029,CU Regent District 06,"Murray, Richard",Republican,25.41,9/17/20 0:00,Legacy Consulting Llc,Englewood,CO,80113,Other,7490 ∑ Other Consultants
985,CU Regent District 06,"Murray, Richard",Republican,1067.5,5/25/20 0:00,"Sws Polifi, Llc",Lafayette,CO,80026,Other,7520 ∑ Accounting Fees
991,CU Regent District 06,"Murray, Richard",Republican,150.0,6/2/20 0:00,"Sws Polifi, Llc",Lafayette,CO,80026,Other,7520 ∑ Accounting Fees
1009,CU Regent District 06,"Murray, Richard",Republican,450.0,7/31/20 0:00,"Sws Polifi, Llc",Lafayette,CO,80026,Other,7520 ∑ Accounting Fees
1050,CU Regent District 06,"Murray, Richard",Republican,150.0,10/15/20 0:00,"Sws Polifi, Llc",Lafayette,CO,80026,Other,7520 ∑ Accounting Fees
1061,CU Regent District 06,"Rahn, Priscilla",Republican,150.0,1/4/20 0:00,"Sws Polifi, Llc",Fort Lupton,CO,80621,Other,7520 ∑ Accounting Fees
1137,CU Regent District 06,"Rahn, Priscilla",Republican,264.4,5/7/20 0:00,"Sws Polifi, Llc",Fort Lupton,CO,80621,Other,7520 ∑ Accounting Fees
1151,CU Regent District 06,"Rahn, Priscilla",Republican,150.0,5/25/20 0:00,"Sws Polifi, Llc",Fort Lupton,CO,80621,Other,7520 ∑ Accounting Fees
1160,CU Regent District 06,"Rahn, Priscilla",Republican,150.0,6/3/20 0:00,"Sws Polifi, Llc",Fort Lupton,CO,80621,Other,7520 ∑ Accounting Fees
1154,CU Regent District 06,"Rahn, Priscilla",Republican,1.0,5/29/20 0:00,Firstbank North,Arvada,CO,80006,Other,7810 ∑ Service Charges
915,CU Regent District 06,"Murray, Richard",Republican,14.2,1/22/20 0:00,Anedot,Baton Rouge,LA,70808,Other,7820 ∑ Merchant Account Fees
916,CU Regent District 06,"Murray, Richard",Republican,81.5,1/23/20 0:00,Anedot,Baton Rouge,LA,70808,Other,7820 ∑ Merchant Account Fees
917,CU Regent District 06,"Murray, Richard",Republican,48.9,1/24/20 0:00,Anedot,Baton Rouge,LA,70808,Other,7820 ∑ Merchant Account Fees
918,CU Regent District 06,"Murray, Richard",Republican,83.62,1/25/20 0:00,Anedot,Baton Rouge,LA,70808,Other,7820 ∑ Merchant Account Fees
919,CU Regent District 06,"Murray, Richard",Republican,27.43,1/26/20 0:00,Anedot,Baton Rouge,LA,70808,Other,7820 ∑ Merchant Account Fees
920,CU Regent District 06,"Murray, Richard",Republican,5.6,1/27/20 0:00,Anedot,Baton Rouge,LA,70808,Other,7820 ∑ Merchant Account Fees
921,CU Regent District 06,"Murray, Richard",Republican,23.23,1/28/20 0:00,Anedot,Baton Rouge,LA,70808,Other,7820 ∑ Merchant Account Fees
922,CU Regent District 06,"Murray, Richard",Republican,4.3,1/29/20 0:00,Anedot,Baton Rouge,LA,70808,Other,7820 ∑ Merchant Account Fees
923,CU Regent District 06,"Murray, Richard",Republican,4.3,1/31/20 0:00,Anedot,Baton Rouge,LA,70808,Other,7820 ∑ Merchant Account Fees
924,CU Regent District 06,"Murray, Richard",Republican,20.92,2/3/20 0:00,Anedot,Baton Rouge,LA,70808,Other,7820 ∑ Merchant Account Fees
925,CU Regent District 06,"Murray, Richard",Republican,2.31,2/4/20 0:00,Anedot,Baton Rouge,LA,70808,Other,7820 ∑ Merchant Account Fees
926,CU Regent District 06,"Murray, Richard",Republican,2.31,2/4/20 0:00,Anedot,Baton Rouge,LA,70808,Other,7820 ∑ Merchant Account Fees
927,CU Regent District 06,"Murray, Richard",Republican,1.3,2/4/20 0:00,Anedot,Baton Rouge,LA,70808,Other,7820 ∑ Merchant Account Fees
928,CU Regent District 06,"Murray, Richard",Republican,18.91,2/9/20 0:00,Anedot,Baton Rouge,LA,70808,Other,7820 ∑ Merchant Account Fees
929,CU Regent District 06,"Murray, Richard",Republican,55.42,2/10/20 0:00,Anedot,Baton Rouge,LA,70808,Other,7820 ∑ Merchant Account Fees
930,CU Regent District 06,"Murray, Richard",Republican,21.13,2/11/20 0:00,Anedot,Baton Rouge,LA,70808,Other,7820 ∑ Merchant Account Fees
931,CU Regent District 06,"Murray, Richard",Republican,4.3,2/12/20 0:00,Anedot,Baton Rouge,LA,70808,Other,7820 ∑ Merchant Account Fees
932,CU Regent District 06,"Murray, Richard",Republican,8.6,2/13/20 0:00,Anedot,Baton Rouge,LA,70808,Other,7820 ∑ Merchant Account Fees
933,CU Regent District 06,"Murray, Richard",Republican,20.6,2/14/20 0:00,Anedot,Baton Rouge,LA,70808,Other,7820 ∑ Merchant Account Fees
934,CU Regent District 06,"Murray, Richard",Republican,16.3,2/15/20 0:00,Anedot,Baton Rouge,LA,70808,Other,7820 ∑ Merchant Account Fees
935,CU Regent District 06,"Murray, Richard",Republican,25.22,2/17/20 0:00,Anedot,Baton Rouge,LA,70808,Other,7820 ∑ Merchant Account Fees
936,CU Regent District 06,"Murray, Richard",Republican,29.22,2/18/20 0:00,Anedot,Baton Rouge,LA,70808,Other,7820 ∑ Merchant Account Fees
937,CU Regent District 06,"Murray, Richard",Republican,1.3,2/20/20 0:00,Anedot,Baton Rouge,LA,70808,Other,7820 ∑ Merchant Account Fees
938,CU Regent District 06,"Murray, Richard",Republican,1.3,2/23/20 0:00,Anedot,Baton Rouge,LA,70808,Other,7820 ∑ Merchant Account Fees
939,CU Regent District 06,"Murray, Richard",Republican,43.44,2/28/20 0:00,Anedot,Baton Rouge,LA,70808,Other,7820 ∑ Merchant Account Fees
941,CU Regent District 06,"Murray, Richard",Republican,39.73,2/29/20 0:00,Anedot,Baton Rouge,LA,70808,Other,7820 ∑ Merchant Account Fees
942,CU Regent District 06,"Murray, Richard",Republican,2.31,3/1/20 0:00,Anedot,Baton Rouge,LA,70808,Other,7820 ∑ Merchant Account Fees
947,CU Regent District 06,"Murray, Richard",Republican,18.31,3/3/20 0:00,Anedot,Baton Rouge,LA,70808,Other,7820 ∑ Merchant Account Fees
948,CU Regent District 06,"Murray, Richard",Republican,8.3,3/4/20 0:00,Anedot,Baton Rouge,LA,70808,Other,7820 ∑ Merchant Account Fees
949,CU Regent District 06,"Murray, Richard",Republican,2.31,3/9/20 0:00,Anedot,Baton Rouge,LA,70808,Other,7820 ∑ Merchant Account Fees
950,CU Regent District 06,"Murray, Richard",Republican,1.3,3/10/20 0:00,Anedot,Baton Rouge,LA,70808,Other,7820 ∑ Merchant Account Fees
951,CU Regent District 06,"Murray, Richard",Republican,16.3,3/13/20 0:00,Anedot,Baton Rouge,LA,70808,Other,7820 ∑ Merchant Account Fees
952,CU Regent District 06,"Murray, Richard",Republican,4.3,3/17/20 0:00,Anedot,Baton Rouge,LA,70808,Other,7820 ∑ Merchant Account Fees
953,CU Regent District 06,"Murray, Richard",Republican,32.6,3/20/20 0:00,Anedot,Baton Rouge,LA,70808,Other,7820 ∑ Merchant Account Fees
954,CU Regent District 06,"Murray, Richard",Republican,4.3,4/4/20 0:00,Anedot,Baton Rouge,LA,70808,Other,7820 ∑ Merchant Account Fees
957,CU Regent District 06,"Murray, Richard",Republican,74.25,4/9/20 0:00,Paypal,San Jose,CA,95131,Other,7820 ∑ Merchant Account Fees
962,CU Regent District 06,"Murray, Richard",Republican,2.3,4/16/20 0:00,Anedot,Baton Rouge,LA,70808,Other,7820 ∑ Merchant Account Fees
965,CU Regent District 06,"Murray, Richard",Republican,2.7,4/26/20 0:00,Anedot,Baton Rouge,LA,70808,Other,7820 ∑ Merchant Account Fees
966,CU Regent District 06,"Murray, Richard",Republican,27.5,4/29/20 0:00,Anedot,Baton Rouge,LA,70808,Other,7820 ∑ Merchant Account Fees
967,CU Regent District 06,"Murray, Richard",Republican,16.3,4/30/20 0:00,Anedot,Baton Rouge,LA,70808,Other,7820 ∑ Merchant Account Fees
968,CU Regent District 06,"Murray, Richard",Republican,2.3,5/2/20 0:00,Anedot,Baton Rouge,LA,70808,Other,7820 ∑ Merchant Account Fees
969,CU Regent District 06,"Murray, Richard",Republican,2.3,5/4/20 0:00,Anedot,Baton Rouge,LA,70808,Other,7820 ∑ Merchant Account Fees
970,CU Regent District 06,"Murray, Richard",Republican,1.3,5/6/20 0:00,Anedot,Baton Rouge,LA,70808,Other,7820 ∑ Merchant Account Fees
972,CU Regent District 06,"Murray, Richard",Republican,10.9,5/7/20 0:00,Anedot,Baton Rouge,LA,70808,Other,7820 ∑ Merchant Account Fees
973,CU Regent District 06,"Murray, Richard",Republican,1.3,5/8/20 0:00,Anedot,Baton Rouge,LA,70808,Other,7820 ∑ Merchant Account Fees
974,CU Regent District 06,"Murray, Richard",Republican,11.9,5/11/20 0:00,Anedot,Baton Rouge,LA,70808,Other,7820 ∑ Merchant Account Fees
975,CU Regent District 06,"Murray, Richard",Republican,15.2,5/12/20 0:00,Anedot,Baton Rouge,LA,70808,Other,7820 ∑ Merchant Account Fees
976,CU Regent District 06,"Murray, Richard",Republican,32.8,5/13/20 0:00,Anedot,Baton Rouge,LA,70808,Other,7820 ∑ Merchant Account Fees
977,CU Regent District 06,"Murray, Richard",Republican,14.9,5/14/20 0:00,Anedot,Baton Rouge,LA,70808,Other,7820 ∑ Merchant Account Fees
978,CU Regent District 06,"Murray, Richard",Republican,4.3,5/16/20 0:00,Anedot,Baton Rouge,LA,70808,Other,7820 ∑ Merchant Account Fees
979,CU Regent District 06,"Murray, Richard",Republican,2.3,5/19/20 0:00,Anedot,Baton Rouge,LA,70808,Other,7820 ∑ Merchant Account Fees
980,CU Regent District 06,"Murray, Richard",Republican,1.3,5/20/20 0:00,Anedot,Baton Rouge,LA,70808,Other,7820 ∑ Merchant Account Fees
982,CU Regent District 06,"Murray, Richard",Republican,4.6,5/22/20 0:00,Anedot,Baton Rouge,LA,70808,Other,7820 ∑ Merchant Account Fees
983,CU Regent District 06,"Murray, Richard",Republican,6.9,5/23/20 0:00,Anedot,Baton Rouge,LA,70808,Other,7820 ∑ Merchant Account Fees
984,CU Regent District 06,"Murray, Richard",Republican,17.6,5/25/20 0:00,Anedot,Baton Rouge,LA,70808,Other,7820 ∑ Merchant Account Fees
986,CU Regent District 06,"Murray, Richard",Republican,12.6,5/26/20 0:00,Anedot,Baton Rouge,LA,70808,Other,7820 ∑ Merchant Account Fees
987,CU Regent District 06,"Murray, Richard",Republican,38.3,5/27/20 0:00,Anedot,Baton Rouge,LA,70808,Other,7820 ∑ Merchant Account Fees
988,CU Regent District 06,"Murray, Richard",Republican,4.9,5/28/20 0:00,Anedot,Baton Rouge,LA,70808,Other,7820 ∑ Merchant Account Fees
989,CU Regent District 06,"Murray, Richard",Republican,1.3,5/29/20 0:00,Anedot,Baton Rouge,LA,70808,Other,7820 ∑ Merchant Account Fees
990,CU Regent District 06,"Murray, Richard",Republican,1.3,6/1/20 0:00,Anedot,Baton Rouge,LA,70808,Other,7820 ∑ Merchant Account Fees
993,CU Regent District 06,"Murray, Richard",Republican,4.9,6/9/20 0:00,Anedot,Baton Rouge,LA,70808,Other,7820 ∑ Merchant Account Fees
994,CU Regent District 06,"Murray, Richard",Republican,4.3,6/11/20 0:00,Anedot,Baton Rouge,LA,70808,Other,7820 ∑ Merchant Account Fees
996,CU Regent District 06,"Murray, Richard",Republican,4.3,6/16/20 0:00,Anedot,Baton Rouge,LA,70808,Other,7820 ∑ Merchant Account Fees
997,CU Regent District 06,"Murray, Richard",Republican,2.6,6/18/20 0:00,Anedot,Baton Rouge,LA,70808,Other,7820 ∑ Merchant Account Fees
998,CU Regent District 06,"Murray, Richard",Republican,32.6,6/19/20 0:00,Anedot,Baton Rouge,LA,70808,Other,7820 ∑ Merchant Account Fees
999,CU Regent District 06,"Murray, Richard",Republican,9.6,6/25/20 0:00,Anedot,Baton Rouge,LA,70808,Other,7820 ∑ Merchant Account Fees
1000,CU Regent District 06,"Murray, Richard",Republican,8.6,7/2/20 0:00,Anedot,Baton Rouge,LA,70808,Other,7820 ∑ Merchant Account Fees
1002,CU Regent District 06,"Murray, Richard",Republican,14.6,7/4/20 0:00,Anedot,Baton Rouge,LA,70808,Other,7820 ∑ Merchant Account Fees
1003,CU Regent District 06,"Murray, Richard",Republican,2.3,7/5/20 0:00,Anedot,Baton Rouge,LA,70808,Other,7820 ∑ Merchant Account Fees
1004,CU Regent District 06,"Murray, Richard",Republican,8.3,7/7/20 0:00,Anedot,Baton Rouge,LA,70808,Other,7820 ∑ Merchant Account Fees
1005,CU Regent District 06,"Murray, Richard",Republican,4.3,7/11/20 0:00,Anedot,Baton Rouge,LA,70808,Other,7820 ∑ Merchant Account Fees
1006,CU Regent District 06,"Murray, Richard",Republican,4.3,7/26/20 0:00,Anedot,Baton Rouge,LA,70808,Other,7820 ∑ Merchant Account Fees
1010,CU Regent District 06,"Murray, Richard",Republican,0.9,8/8/20 0:00,Anedot,Baton Rouge,LA,70808,Other,7820 ∑ Merchant Account Fees
1011,CU Regent District 06,"Murray, Richard",Republican,0.9,8/8/20 0:00,Anedot,Baton Rouge,LA,70808,Other,7820 ∑ Merchant Account Fees
1012,CU Regent District 06,"Murray, Richard",Republican,3.6,8/9/20 0:00,Anedot,Baton Rouge,LA,70808,Other,7820 ∑ Merchant Account Fees
1013,CU Regent District 06,"Murray, Richard",Republican,5.6,8/10/20 0:00,Anedot,Baton Rouge,LA,70808,Other,7820 ∑ Merchant Account Fees
1014,CU Regent District 06,"Murray, Richard",Republican,4.3,8/14/20 0:00,Anedot,Baton Rouge,LA,70808,Other,7820 ∑ Merchant Account Fees
1015,CU Regent District 06,"Murray, Richard",Republican,5.9,8/18/20 0:00,Anedot,Baton Rouge,LA,70808,Other,7820 ∑ Merchant Account Fees
1016,CU Regent District 06,"Murray, Richard",Republican,8.3,8/19/20 0:00,Anedot,Baton Rouge,LA,70808,Other,7820 ∑ Merchant Account Fees
1017,CU Regent District 06,"Murray, Richard",Republican,20.6,8/26/20 0:00,Anedot,Baton Rouge,LA,70808,Other,7820 ∑ Merchant Account Fees
1018,CU Regent District 06,"Murray, Richard",Republican,1.7,8/27/20 0:00,Anedot,Baton Rouge,LA,70808,Other,7820 ∑ Merchant Account Fees
1019,CU Regent District 06,"Murray, Richard",Republican,4.1,8/28/20 0:00,Winred,Arlington,VA,22219,Other,7820 ∑ Merchant Account Fees
1020,CU Regent District 06,"Murray, Richard",Republican,15.81,9/2/20 0:00,Winred,Arlington,VA,22219,Other,7820 ∑ Merchant Account Fees
1021,CU Regent District 06,"Murray, Richard",Republican,16.75,9/2/20 0:00,Winred,Arlington,VA,22219,Other,7820 ∑ Merchant Account Fees
1022,CU Regent District 06,"Murray, Richard",Republican,2.2,9/3/20 0:00,Winred,Arlington,VA,22219,Other,7820 ∑ Merchant Account Fees
1023,CU Regent District 06,"Murray, Richard",Republican,4.3,9/5/20 0:00,Anedot,Baton Rouge,LA,70808,Other,7820 ∑ Merchant Account Fees
1024,CU Regent District 06,"Murray, Richard",Republican,9.75,9/8/20 0:00,Winred,Arlington,VA,22219,Other,7820 ∑ Merchant Account Fees
1025,CU Regent District 06,"Murray, Richard",Republican,2.2,9/9/20 0:00,Winred,Arlington,VA,22219,Other,7820 ∑ Merchant Account Fees
1026,CU Regent District 06,"Murray, Richard",Republican,2.2,9/11/20 0:00,Winred,Arlington,VA,22219,Other,7820 ∑ Merchant Account Fees
1027,CU Regent District 06,"Murray, Richard",Republican,8.5,9/13/20 0:00,Winred,Arlington,VA,22219,Other,7820 ∑ Merchant Account Fees
1028,CU Regent District 06,"Murray, Richard",Republican,2.09,9/16/20 0:00,Winred,Arlington,VA,22219,Other,7820 ∑ Merchant Account Fees
1030,CU Regent District 06,"Murray, Richard",Republican,23.05,9/19/20 0:00,Winred,Arlington,VA,22219,Other,7820 ∑ Merchant Account Fees
1031,CU Regent District 06,"Murray, Richard",Republican,7.55,9/19/20 0:00,Winred,Arlington,VA,22219,Other,7820 ∑ Merchant Account Fees
1032,CU Regent District 06,"Murray, Richard",Republican,39.15,9/21/20 0:00,Winred,Arlington,VA,22219,Other,7820 ∑ Merchant Account Fees
1033,CU Regent District 06,"Murray, Richard",Republican,8.5,9/22/20 0:00,Winred,Arlington,VA,22219,Other,7820 ∑ Merchant Account Fees
1034,CU Regent District 06,"Murray, Richard",Republican,4.3,9/23/20 0:00,Anedot,Baton Rouge,LA,70808,Other,7820 ∑ Merchant Account Fees
1035,CU Regent District 06,"Murray, Richard",Republican,1.25,9/23/20 0:00,Winred,Arlington,VA,22219,Other,7820 ∑ Merchant Account Fees
1036,CU Regent District 06,"Murray, Richard",Republican,2.2,9/25/20 0:00,Winred,Arlington,VA,22219,Other,7820 ∑ Merchant Account Fees
1037,CU Regent District 06,"Murray, Richard",Republican,1.25,9/25/20 0:00,Winred,Arlington,VA,22219,Other,7820 ∑ Merchant Account Fees
1038,CU Regent District 06,"Murray, Richard",Republican,5.35,9/28/20 0:00,Winred,Arlington,VA,22219,Other,7820 ∑ Merchant Account Fees
1041,CU Regent District 06,"Murray, Richard",Republican,8.5,9/29/20 0:00,Winred,Arlington,VA,22219,Other,7820 ∑ Merchant Account Fees
1044,CU Regent District 06,"Murray, Richard",Republican,17.08,9/30/20 0:00,Winred,Arlington,VA,22219,Other,7820 ∑ Merchant Account Fees
1045,CU Regent District 06,"Murray, Richard",Republican,2.73,10/1/20 0:00,Winred,Arlington,VA,22219,Other,7820 ∑ Merchant Account Fees
1046,CU Regent District 06,"Murray, Richard",Republican,7.85,10/6/20 0:00,Winred,Arlington,VA,22219,Other,7820 ∑ Merchant Account Fees
1051,CU Regent District 06,"Murray, Richard",Republican,11.65,10/16/20 0:00,Winred,Arlington,VA,22219,Other,7820 ∑ Merchant Account Fees
1054,CU Regent District 06,"Murray, Richard",Republican,53.95,10/28/20 0:00,Winred,Arlington,VA,22219,Other,7820 ∑ Merchant Account Fees
1057,CU Regent District 06,"Rahn, Priscilla",Republican,0.7,1/2/20 0:00,Anedot,Baton Rouge,LA,70808,Other,7820 ∑ Merchant Account Fees
1059,CU Regent District 06,"Rahn, Priscilla",Republican,4.3,1/4/20 0:00,Anedot,Baton Rouge,LA,70808,Other,7820 ∑ Merchant Account Fees
1063,CU Regent District 06,"Rahn, Priscilla",Republican,1.1,1/6/20 0:00,Anedot,Baton Rouge,LA,70808,Other,7820 ∑ Merchant Account Fees
1064,CU Regent District 06,"Rahn, Priscilla",Republican,10.3,1/11/20 0:00,Anedot,Baton Rouge,LA,70808,Other,7820 ∑ Merchant Account Fees
1065,CU Regent District 06,"Rahn, Priscilla",Republican,2.8,1/13/20 0:00,Anedot,Baton Rouge,LA,70808,Other,7820 ∑ Merchant Account Fees
1066,CU Regent District 06,"Rahn, Priscilla",Republican,12.6,1/15/20 0:00,Anedot,Baton Rouge,LA,70808,Other,7820 ∑ Merchant Account Fees
1067,CU Regent District 06,"Rahn, Priscilla",Republican,2.3,1/22/20 0:00,Anedot,Baton Rouge,LA,70808,Other,7820 ∑ Merchant Account Fees
1068,CU Regent District 06,"Rahn, Priscilla",Republican,5.7,1/23/20 0:00,Anedot,Baton Rouge,LA,70808,Other,7820 ∑ Merchant Account Fees
1070,CU Regent District 06,"Rahn, Priscilla",Republican,14.4,1/25/20 0:00,Anedot,Baton Rouge,LA,70808,Other,7820 ∑ Merchant Account Fees
1071,CU Regent District 06,"Rahn, Priscilla",Republican,10.3,1/25/20 0:00,Anedot,Baton Rouge,LA,70808,Other,7820 ∑ Merchant Account Fees
1073,CU Regent District 06,"Rahn, Priscilla",Republican,0.7,1/27/20 0:00,Anedot,Baton Rouge,LA,70808,Other,7820 ∑ Merchant Account Fees
1075,CU Regent District 06,"Rahn, Priscilla",Republican,1.1,1/28/20 0:00,Anedot,Baton Rouge,LA,70808,Other,7820 ∑ Merchant Account Fees
1076,CU Regent District 06,"Rahn, Priscilla",Republican,1.1,1/30/20 0:00,Anedot,Baton Rouge,LA,70808,Other,7820 ∑ Merchant Account Fees
1077,CU Regent District 06,"Rahn, Priscilla",Republican,1.1,2/1/20 0:00,Anedot,Baton Rouge,LA,70808,Other,7820 ∑ Merchant Account Fees
1081,CU Regent District 06,"Rahn, Priscilla",Republican,1.1,2/17/20 0:00,Anedot,Baton Rouge,LA,70808,Other,7820 ∑ Merchant Account Fees
1082,CU Regent District 06,"Rahn, Priscilla",Republican,2.3,2/20/20 0:00,Anedot,Baton Rouge,LA,70808,Other,7820 ∑ Merchant Account Fees
1084,CU Regent District 06,"Rahn, Priscilla",Republican,2.3,2/28/20 0:00,Anedot,Baton Rouge,LA,70808,Other,7820 ∑ Merchant Account Fees
1085,CU Regent District 06,"Rahn, Priscilla",Republican,7.54,2/29/20 0:00,Anedot,Baton Rouge,LA,70808,Other,7820 ∑ Merchant Account Fees
1086,CU Regent District 06,"Rahn, Priscilla",Republican,4.3,3/1/20 0:00,Anedot,Baton Rouge,LA,70808,Other,7820 ∑ Merchant Account Fees
1087,CU Regent District 06,"Rahn, Priscilla",Republican,1.1,3/2/20 0:00,Anedot,Baton Rouge,LA,70808,Other,7820 ∑ Merchant Account Fees
1090,CU Regent District 06,"Rahn, Priscilla",Republican,16.3,3/4/20 0:00,Anedot,Baton Rouge,LA,70808,Other,7820 ∑ Merchant Account Fees
1092,CU Regent District 06,"Rahn, Priscilla",Republican,1.1,3/6/20 0:00,Anedot,Baton Rouge,LA,70808,Other,7820 ∑ Merchant Account Fees
1096,CU Regent District 06,"Rahn, Priscilla",Republican,2.3,3/8/20 0:00,Anedot,Baton Rouge,LA,70808,Other,7820 ∑ Merchant Account Fees
1104,CU Regent District 06,"Rahn, Priscilla",Republican,19.1,3/31/20 0:00,Anedot,Baton Rouge,LA,70808,Other,7820 ∑ Merchant Account Fees
1106,CU Regent District 06,"Rahn, Priscilla",Republican,1.1,4/1/20 0:00,Anedot,Baton Rouge,LA,70808,Other,7820 ∑ Merchant Account Fees
1107,CU Regent District 06,"Rahn, Priscilla",Republican,2.3,4/2/20 0:00,Anedot,Baton Rouge,LA,70808,Other,7820 ∑ Merchant Account Fees
1110,CU Regent District 06,"Rahn, Priscilla",Republican,7.6,4/3/20 0:00,Anedot,Baton Rouge,LA,70808,Other,7820 ∑ Merchant Account Fees
1111,CU Regent District 06,"Rahn, Priscilla",Republican,1.1,4/4/20 0:00,Anedot,Baton Rouge,LA,70808,Other,7820 ∑ Merchant Account Fees
1112,CU Regent District 06,"Rahn, Priscilla",Republican,5.9,4/5/20 0:00,Anedot,Baton Rouge,LA,70808,Other,7820 ∑ Merchant Account Fees
1113,CU Regent District 06,"Rahn, Priscilla",Republican,4.3,4/7/20 0:00,Anedot,Baton Rouge,LA,70808,Other,7820 ∑ Merchant Account Fees
1114,CU Regent District 06,"Rahn, Priscilla",Republican,0.5,4/8/20 0:00,Anedot,Baton Rouge,LA,70808,Other,7820 ∑ Merchant Account Fees
1115,CU Regent District 06,"Rahn, Priscilla",Republican,0.7,4/9/20 0:00,Anedot,Baton Rouge,LA,70808,Other,7820 ∑ Merchant Account Fees
1116,CU Regent District 06,"Rahn, Priscilla",Republican,1.1,4/11/20 0:00,Anedot,Baton Rouge,LA,70808,Other,7820 ∑ Merchant Account Fees
1117,CU Regent District 06,"Rahn, Priscilla",Republican,2.3,4/12/20 0:00,Anedot,Baton Rouge,LA,70808,Other,7820 ∑ Merchant Account Fees
1118,CU Regent District 06,"Rahn, Priscilla",Republican,6.6,4/15/20 0:00,Anedot,Baton Rouge,LA,70808,Other,7820 ∑ Merchant Account Fees
1119,CU Regent District 06,"Rahn, Priscilla",Republican,3.4,4/17/20 0:00,Anedot,Baton Rouge,LA,70808,Other,7820 ∑ Merchant Account Fees
1121,CU Regent District 06,"Rahn, Priscilla",Republican,1.1,4/22/20 0:00,Anedot,Baton Rouge,LA,70808,Other,7820 ∑ Merchant Account Fees
1123,CU Regent District 06,"Rahn, Priscilla",Republican,2.3,4/23/20 0:00,Anedot,Baton Rouge,LA,70808,Other,7820 ∑ Merchant Account Fees
1126,CU Regent District 06,"Rahn, Priscilla",Republican,2.2,4/25/20 0:00,Anedot,Baton Rouge,LA,70808,Other,7820 ∑ Merchant Account Fees
1127,CU Regent District 06,"Rahn, Priscilla",Republican,1.1,4/26/20 0:00,Anedot,Baton Rouge,LA,70808,Other,7820 ∑ Merchant Account Fees
1130,CU Regent District 06,"Rahn, Priscilla",Republican,4.1,4/30/20 0:00,Anedot,Baton Rouge,LA,70808,Other,7820 ∑ Merchant Account Fees
1132,CU Regent District 06,"Rahn, Priscilla",Republican,4.3,5/2/20 0:00,Anedot,Baton Rouge,LA,70808,Other,7820 ∑ Merchant Account Fees
1135,CU Regent District 06,"Rahn, Priscilla",Republican,1.1,5/6/20 0:00,Anedot,Baton Rouge,LA,70808,Other,7820 ∑ Merchant Account Fees
1139,CU Regent District 06,"Rahn, Priscilla",Republican,6.7,5/9/20 0:00,Anedot,Baton Rouge,LA,70808,Other,7820 ∑ Merchant Account Fees
1140,CU Regent District 06,"Rahn, Priscilla",Republican,5.2,5/11/20 0:00,Anedot,Baton Rouge,LA,70808,Other,7820 ∑ Merchant Account Fees
1141,CU Regent District 06,"Rahn, Priscilla",Republican,2.7,5/11/20 0:00,Anedot,Baton Rouge,LA,70808,Other,7820 ∑ Merchant Account Fees
1143,CU Regent District 06,"Rahn, Priscilla",Republican,23.3,5/13/20 0:00,Anedot,Baton Rouge,LA,70808,Other,7820 ∑ Merchant Account Fees
1144,CU Regent District 06,"Rahn, Priscilla",Republican,1.8,5/14/20 0:00,Anedot,Baton Rouge,LA,70808,Other,7820 ∑ Merchant Account Fees
1145,CU Regent District 06,"Rahn, Priscilla",Republican,1.3,5/20/20 0:00,Anedot,Baton Rouge,LA,70808,Other,7820 ∑ Merchant Account Fees
1146,CU Regent District 06,"Rahn, Priscilla",Republican,1.1,5/22/20 0:00,Anedot,Baton Rouge,LA,70808,Other,7820 ∑ Merchant Account Fees
1147,CU Regent District 06,"Rahn, Priscilla",Republican,7.4,5/22/20 0:00,Anedot,Baton Rouge,LA,70808,Other,7820 ∑ Merchant Account Fees
1150,CU Regent District 06,"Rahn, Priscilla",Republican,2.3,5/25/20 0:00,Anedot,Baton Rouge,LA,70808,Other,7820 ∑ Merchant Account Fees
1152,CU Regent District 06,"Rahn, Priscilla",Republican,4.3,5/26/20 0:00,Anedot,Baton Rouge,LA,70808,Other,7820 ∑ Merchant Account Fees
1153,CU Regent District 06,"Rahn, Priscilla",Republican,9.8,5/27/20 0:00,Anedot,Baton Rouge,LA,70808,Other,7820 ∑ Merchant Account Fees
1156,CU Regent District 06,"Rahn, Priscilla",Republican,0.7,6/1/20 0:00,Anedot,Baton Rouge,LA,70808,Other,7820 ∑ Merchant Account Fees
1159,CU Regent District 06,"Rahn, Priscilla",Republican,2.3,6/2/20 0:00,Anedot,Baton Rouge,LA,70808,Other,7820 ∑ Merchant Account Fees
1161,CU Regent District 06,"Rahn, Priscilla",Republican,2.1,6/5/20 0:00,Anedot,Baton Rouge,LA,70808,Other,7820 ∑ Merchant Account Fees
1162,CU Regent District 06,"Rahn, Priscilla",Republican,5.4,6/6/20 0:00,Anedot,Baton Rouge,LA,70808,Other,7820 ∑ Merchant Account Fees
1163,CU Regent District 06,"Rahn, Priscilla",Republican,1.1,6/8/20 0:00,Anedot,Baton Rouge,LA,70808,Other,7820 ∑ Merchant Account Fees
1164,CU Regent District 06,"Rahn, Priscilla",Republican,1.1,6/9/20 0:00,Anedot,Baton Rouge,LA,70808,Other,7820 ∑ Merchant Account Fees
1165,CU Regent District 06,"Rahn, Priscilla",Republican,1.1,6/10/20 0:00,Anedot,Baton Rouge,LA,70808,Other,7820 ∑ Merchant Account Fees
1166,CU Regent District 06,"Rahn, Priscilla",Republican,1.1,6/18/20 0:00,Anedot,Baton Rouge,LA,70808,Other,7820 ∑ Merchant Account Fees
1173,CU Regent District 06,"Rahn, Priscilla",Republican,17.4,11/19/19 0:00,Anedot,Baton Rouge,LA,70808,Other,7820 ∑ Merchant Account Fees
1174,CU Regent District 06,"Rahn, Priscilla",Republican,2.3,11/20/19 0:00,Anedot,Baton Rouge,LA,70808,Other,7820 ∑ Merchant Account Fees
1175,CU Regent District 06,"Rahn, Priscilla",Republican,1.1,11/23/19 0:00,Anedot,Baton Rouge,LA,70808,Other,7820 ∑ Merchant Account Fees
1176,CU Regent District 06,"Rahn, Priscilla",Republican,10.3,11/25/19 0:00,Anedot,Baton Rouge,LA,70808,Other,7820 ∑ Merchant Account Fees
1177,CU Regent District 06,"Rahn, Priscilla",Republican,16.3,12/4/19 0:00,Anedot,Baton Rouge,LA,70808,Other,7820 ∑ Merchant Account Fees
1178,CU Regent District 06,"Rahn, Priscilla",Republican,1.1,12/7/19 0:00,Anedot,Baton Rouge,LA,70808,Other,7820 ∑ Merchant Account Fees
1182,CU Regent District 06,"Rahn, Priscilla",Republican,4.3,12/13/19 0:00,Anedot,Baton Rouge,LA,70808,Other,7820 ∑ Merchant Account Fees
1183,CU Regent District 06,"Rahn, Priscilla",Republican,8.3,12/13/19 0:00,Anedot,Baton Rouge,LA,70808,Other,7820 ∑ Merchant Account Fees
1186,CU Regent District 06,"Rahn, Priscilla",Republican,4.3,12/18/19 0:00,Anedot,Baton Rouge,LA,70808,Other,7820 ∑ Merchant Account Fees
1187,CU Regent District 06,"Rahn, Priscilla",Republican,4.3,12/21/19 0:00,Anedot,Baton Rouge,LA,70808,Other,7820 ∑ Merchant Account Fees
1188,CU Regent District 06,"Rahn, Priscilla",Republican,3.3,12/22/19 0:00,Anedot,Baton Rouge,LA,70808,Other,7820 ∑ Merchant Account Fees
1191,CU Regent District 06,"Rahn, Priscilla",Republican,37.4,12/31/19 0:00,Anedot,Baton Rouge,LA,70808,Other,7820 ∑ Merchant Account Fees
414,Bd. Ed. District 07,"Esser, Karla",Democratic,280.0,10/7/20 0:00,Us Postal Service,Englewood,CO,80113,Advertising,800 Postcard Stamps
81,Bd. Ed. District 01,"Morganstern, Donna",Democratic,500.0,1/23/20 0:00,Colorado Democratic Party,Denver,CO,80203,Other,Access To Van
20,Bd. Ed. District 01,"Escarcega, Lisa",Democratic,32.6,5/13/20 0:00,Actblue,Somerville,MA,2144,Bank Fees,Accrued Fees From Actblue Donation System During Reporting Period
17,Bd. Ed. District 01,"Escarcega, Lisa",Democratic,139.9,4/30/20 0:00,Actblue,Somerville,MA,2144,Bank Fees,Accumulated Actblue Electronic Pay System Fees From January 1St Through End Of April
50,Bd. Ed. District 01,"Escarcega, Lisa",Democratic,7.33,9/2/20 0:00,Actblue,Somerville,MA,2144,Bank Fees,Accumulated Actblue Fees
27,Bd. Ed. District 01,"Escarcega, Lisa",Democratic,19.58,6/10/20 0:00,Actblue,Somerville,MA,2144,Bank Fees,Accumulated Actblue Fees For Reporting Period
45,Bd. Ed. District 01,"Escarcega, Lisa",Democratic,5.14,7/27/20 0:00,Actblue,Somerville,MA,2144,Bank Fees,Accumulated Actblue Fees Through Reporting Period
69,Bd. Ed. District 01,"Escarcega, Lisa",Democratic,71.13,12/31/19 0:00,Actblue,Somerville,MA,2144,Bank Fees,Accumulated Fees For Actblue Donation Management Through End Of December
1,Bd. Ed. District 01,"Escarcega, Lisa",Democratic,88.3,9/30/19 0:00,Actblue,Somerville,MA,2144,Bank Fees,Accumulated Fees For Actblue Donation Management Through End Of September
22,Bd. Ed. District 01,"Escarcega, Lisa",Democratic,32.6,5/27/20 0:00,Actblue,Somerville,MA,2144,Bank Fees,Accumulated Fees From Actblue Donation System
33,Bd. Ed. District 01,"Escarcega, Lisa",Democratic,57.51,6/24/20 0:00,Actblue,Somerville,MA,2144,Bank Fees,Accumulted Actblue Fees Through Reporting Period
831,CU Regent District 06,"Spiegel, Ilana",Democratic,373.79,9/30/19 0:00,Act Blue,Somerville,MA,2144,Bank Fees,Act Blue Fees
52,Bd. Ed. District 01,"Escarcega, Lisa",Democratic,15.8,9/11/20 0:00,Actblue,Somerville,MA,2144,Bank Fees,Actblue Fee
71,Bd. Ed. District 01,"Morganstern, Donna",Democratic,3.95,1/5/20 0:00,Actblue,Somerville,MA,02144-3132,Fundraising Expenses,Actblue Fee Deducted From Disbursement
131,Bd. Ed. District 01,"Morganstern, Donna",Democratic,3.95,6/14/20 0:00,Actblue,Somerville,MA,02144-3132,Fundraising Expenses,Actblue Fee Deducted From Disbursement
164,Bd. Ed. District 01,"Morganstern, Donna",Democratic,1.98,12/22/19 0:00,Actblue,Somerville,MA,02144-3132,Fundraising Expenses,Actblue Fee Deducted From Disbursement
94,Bd. Ed. District 01,"Morganstern, Donna",Democratic,1.98,2/21/20 0:00,Actblue,Somerville,MA,02144-3132,Fundraising Expenses,Actblue Fee Deducted From Disbursement Check
134,Bd. Ed. District 01,"Morganstern, Donna",Democratic,5.14,6/21/20 0:00,Actblue,Somerville,MA,02144-3132,Fundraising Expenses,Actblue Fee Deducted From Disbursement Check
140,Bd. Ed. District 01,"Morganstern, Donna",Democratic,15.8,6/28/20 0:00,Actblue,Somerville,MA,02144-3132,Fundraising Expenses,Actblue Fee Deducted From Disbursement Check
73,Bd. Ed. District 01,"Morganstern, Donna",Democratic,1.98,1/12/20 0:00,Actblue,Somerville,MA,02144-3132,Fundraising Expenses,Actblue Fee Deducted From Disbursement Check.
95,Bd. Ed. District 01,"Morganstern, Donna",Democratic,1.19,2/21/20 0:00,Actblue,Somerville,MA,02144-3132,Fundraising Expenses,Actblue Fee Deducted From Disbursement Check.
77,Bd. Ed. District 01,"Morganstern, Donna",Democratic,22.4,1/19/20 0:00,Actblue,Somerville,MA,02144-3132,Fundraising Expenses,Actblue Fee Deducted From Disbursement.
84,Bd. Ed. District 01,"Morganstern, Donna",Democratic,3.96,1/26/20 0:00,Actblue,Somerville,MA,02144-3132,Fundraising Expenses,Actblue Fee Deducted From Disbursement.
90,Bd. Ed. District 01,"Morganstern, Donna",Democratic,1.98,2/9/20 0:00,Actblue,Somerville,MA,02144-3132,Fundraising Expenses,Actblue Fee Deducted From Disbursement.
158,Bd. Ed. District 01,"Morganstern, Donna",Democratic,13.83,12/15/19 0:00,Actblue,Somerville,MA,02144-3132,Fundraising Expenses,Actblue Fee Deducted From Disbursement.
165,Bd. Ed. District 01,"Morganstern, Donna",Democratic,8.89,12/29/19 0:00,Actblue,Somerville,MA,02144-3132,Fundraising Expenses,Actblue Fee Deducted From Disbursement.
167,Bd. Ed. District 01,"Morganstern, Donna",Democratic,2.18,12/31/19 0:00,Actblue,Somerville,MA,02144-3132,Fundraising Expenses,Actblue Fee Deducted From Disbursement.
120,Bd. Ed. District 01,"Morganstern, Donna",Democratic,1.19,5/10/20 0:00,Actblue,Somerville,MA,02144-3132,Fundraising Expenses,Actblue Fee Withheld From Disbursement Check #400022312
117,Bd. Ed. District 01,"Morganstern, Donna",Democratic,1.19,5/3/20 0:00,Actblue,Somerville,MA,02144-3132,Fundraising Expenses,Actblue Fee Withheld From Disbursement Check 400018293
56,Bd. Ed. District 01,"Escarcega, Lisa",Democratic,0.4,9/30/20 0:00,Actblue,Somerville,MA,2144,Bank Fees,Actblue Fees
366,Bd. Ed. District 07,"Esser, Karla",Democratic,54.85,4/29/20 0:00,Actblue,Somerville,MA,2144,Bank Fees,"Actblue Fees For April 1- April 29, 2020"
368,Bd. Ed. District 07,"Esser, Karla",Democratic,54.85,4/29/20 0:00,Actblue,Somerville,MA,2144,Bank Fees,"Actblue Fees For April 1- April 29, 2020"
809,CU Regent District 02,"Harber, Aaron",Democratic,820.5,11/21/19 0:00,,,,,Advertising,Actblue Fees For Credit Card Processing Of Online Donations
433,Bd. Ed. District 07,"Esser, Karla",Democratic,42.93,12/31/19 0:00,Actblue,Somerville,MA,2144,Bank Fees,Actblue Fees For December 2019
357,Bd. Ed. District 07,"Esser, Karla",Democratic,72.33,2/29/20 0:00,Actblue,Somerville,MA,2144,Bank Fees,Actblue Fees For February 2020
351,Bd. Ed. District 07,"Esser, Karla",Democratic,37.18,1/31/20 0:00,Actblue,Somerville,MA,2144,Bank Fees,Actblue Fees For January 2020
360,Bd. Ed. District 07,"Esser, Karla",Democratic,44.47,3/31/20 0:00,Actblue,Somerville,MA,2144,Bank Fees,Actblue Fees For March 2020
431,Bd. Ed. District 07,"Esser, Karla",Democratic,46.25,11/30/19 0:00,Actblue,Somerville,MA,2144,Bank Fees,Actblue Fees For November 2019
423,Bd. Ed. District 07,"Esser, Karla",Democratic,73.35,10/31/19 0:00,Actblue,Somerville,MA,2144,Bank Fees,Actblue Fees For October 2019
54,Bd. Ed. District 01,"Escarcega, Lisa",Democratic,0.99,9/16/20 0:00,Actblue,Somerville,MA,2144,Bank Fees,Actblue Fees For Reporting Period
58,Bd. Ed. District 01,"Escarcega, Lisa",Democratic,3.37,10/15/20 0:00,Actblue,Somerville,MA,2144,Bank Fees,Actblue Fees For Reporting Period
67,Bd. Ed. District 01,"Escarcega, Lisa",Democratic,1.78,11/30/20 0:00,Actblue,Somerville,MA,2144,Bank Fees,Actblue Fees For Reporting Period
373,Bd. Ed. District 07,"Esser, Karla",Democratic,60.08,5/13/20 0:00,Actblue,Somerville,MA,2144,Bank Fees,Actblue Fees For Reporting Period
374,Bd. Ed. District 07,"Esser, Karla",Democratic,33.59,5/27/20 0:00,Actblue,Somerville,MA,2144,Bank Fees,Actblue Fees For Reporting Period
379,Bd. Ed. District 07,"Esser, Karla",Democratic,20.77,6/24/20 0:00,Actblue,Somerville,MA,2144,Bank Fees,Actblue Fees For Reporting Period
383,Bd. Ed. District 07,"Esser, Karla",Democratic,102.98,7/27/20 0:00,Actblue,Somerville,MA,2144,Bank Fees,Actblue Fees For Reporting Period
395,Bd. Ed. District 07,"Esser, Karla",Democratic,85.36,9/2/20 0:00,Actblue,Somerville,MA,2144,Bank Fees,Actblue Fees For Reporting Period
399,Bd. Ed. District 07,"Esser, Karla",Democratic,32.6,9/16/20 0:00,Actblue,Somerville,MA,2144,Bank Fees,Actblue Fees For Reporting Period
415,Bd. Ed. District 07,"Esser, Karla",Democratic,39.16,10/14/20 0:00,Actblue,Somerville,MA,2144,Bank Fees,Actblue Fees For Reporting Period
421,Bd. Ed. District 07,"Esser, Karla",Democratic,8.9,10/28/20 0:00,Actblue,Somerville,MA,2144,Bank Fees,Actblue Fees For Reporting Period
424,Bd. Ed. District 07,"Esser, Karla",Democratic,1.58,11/1/20 0:00,Actblue,Somerville,MA,2144,Bank Fees,Actblue Fees For Reporting Period
378,Bd. Ed. District 07,"Esser, Karla",Democratic,28.86,6/10/20 0:00,Actblue,Somerville,MA,2144,Bank Fees,"Actblue Fees For Reporting Period Of May 28 - June 10, 2020"
343,Bd. Ed. District 07,"Esser, Karla",Democratic,255.46,9/30/19 0:00,Actblue,Somerville,MA,2144,Bank Fees,Actblue Fees For September
403,Bd. Ed. District 07,"Esser, Karla",Democratic,34.25,9/30/20 0:00,Actblue,Somerville,MA,2144,Bank Fees,Actblue Fees For The Reporting Period
801,CU Regent District 02,"Harber, Aaron",Democratic,154.62,6/24/20 0:00,,,,,Bank Fees,Actblue Processing Charges
582,CU Regent  District 02,"Rennison, Callie",Democratic,30.0,10/16/19 0:00,Action Network,Washington,DC,20036,Fundraising Expenses,Action Network
504,CU Regent  District 02,"Rennison, Callie",Democratic,25.0,5/16/20 0:00,Action Network,Washington,DC,20036,Fundraising Expenses,Action Network Paid For By Candidate'S Personal Acct
1195,CU Regent District 07,"Chavez, Nolbert",Democratic,80.0,2/2/20 0:00,Adams County Democratic Party (A.C.D.C.C),Northglenn,CO,80234,"Food, Beverages and Meals",Adams County Democratís Super Bowl Event
268,Bd. Ed. District 03,"Simpson, Mayling",Democratic,13.57,10/25/20 0:00,Actblue,Somerville,MA,02144-0031,Fundraising Expenses,Adjustment To Correct Error And  Amounts Not Previously Reported
92,Bd. Ed. District 01,"Morganstern, Donna",Democratic,24.91,2/19/20 0:00,Godaddy,Scottsdale,AZ,85260,Advertising,Advertisement On Website
46,Bd. Ed. District 01,"Escarcega, Lisa",Democratic,96.94,7/28/20 0:00,Google,Mountain View,CA,94043,Advertising,Advertising
793,CU Regent District 02,"Harber, Aaron",Democratic,26348.0,6/19/20 0:00,Effect Tv,Denver,CO,80202,Advertising,Advertising
802,CU Regent District 02,"Harber, Aaron",Democratic,12500.0,6/26/20 0:00,Effct Llc,Denver,CO,80204,Advertising,Advertising
100,Bd. Ed. District 01,"Morganstern, Donna",Democratic,15.61,3/7/20 0:00,Facebook,Menlo Park,CA,95025,Advertising,Advertising On Facebook
137,Bd. Ed. District 01,"Morganstern, Donna",Democratic,40.61,6/24/20 0:00,Facebook,Menlo Park,CA,94025,Advertising,Advertising On Facebook
97,Bd. Ed. District 01,"Morganstern, Donna",Democratic,25.0,2/28/20 0:00,Facebook,Menlo Park,CA,94025,Advertising,Advertising On Facebook Page.
132,Bd. Ed. District 01,"Morganstern, Donna",Democratic,69.0,6/14/20 0:00,Facebook,Menlo Park,CA,94025,Advertising,Advertising On Facebook.
792,CU Regent District 02,"Harber, Aaron",Democratic,1735.0,6/18/20 0:00,K3 Colorado,Aurora,CO,80014,Advertising,Advertising On Kcdo
104,Bd. Ed. District 01,"Morganstern, Donna",Democratic,36.51,3/11/20 0:00,Godaddy Corporate Headquarters,Scottsdale,AZ,85260,Advertising,Advertising On Website
347,Bd. Ed. District 07,"Esser, Karla",Democratic,7.73,1/13/20 0:00,Amazon,Seattle,WA,98108-1226,Fundraising Expenses,Amazon Fundraiser Bid Cards
474,CU Regent  District 02,"Rennison, Callie",Democratic,2250.0,3/3/20 0:00,C & D Printing And Mailing,Denver,CO,80212,Fundraising Expenses,Assembly Handouts
356,Bd. Ed. District 07,"Esser, Karla",Democratic,12.87,2/25/20 0:00,Amazon,Seattle,WA,98108-1226,Office Equipment & Supplies,Bags For Delivering Post Card Batches To Volunteers
375,Bd. Ed. District 07,"Esser, Karla",Democratic,11.94,5/27/20 0:00,Amazon,Seattle,WA,98108-1226,Office Equipment & Supplies,Bags For Delivering Postcard Batches To Volunteers
62,Bd. Ed. District 01,"Escarcega, Lisa",Democratic,4.0,10/30/20 0:00,Firstbank,Lakewood,CO,80215,Bank Fees,Bank Account Fee
68,Bd. Ed. District 01,"Escarcega, Lisa",Democratic,4.0,11/30/20 0:00,Firstbank,Lakewood,CO,80215,Bank Fees,Bank Account Fee
55,Bd. Ed. District 01,"Escarcega, Lisa",Democratic,4.0,9/30/20 0:00,Firstbank,Lakewood,CO,80215,Bank Fees,Bank Account Fees
49,Bd. Ed. District 01,"Escarcega, Lisa",Democratic,4.0,8/31/20 0:00,Firstbank,Lakewood,CO,80215,Bank Fees,Bank Card Fee
26,Bd. Ed. District 01,"Escarcega, Lisa",Democratic,42.14,6/1/20 0:00,Deluxe Financial Services,North Shoreview,MN,55126,Miscellaneous,Bank Checks
860,CU Regent District 06,"Spiegel, Ilana",Democratic,4.0,7/14/20 0:00,,,,,Bank Fees,Bank Fee
572,CU Regent  District 02,"Rennison, Callie",Democratic,7.88,10/2/19 0:00,Premiere Members Credit Union,Boulder,CO,80303,Bank Fees,Bank Fees For Checks
370,Bd. Ed. District 07,"Esser, Karla",Democratic,166.16,5/1/20 0:00,Engage Strategies Llc,Denver,CO,80202,Advertising,"Banner
Check #1008
Invoice #176"
86,Bd. Ed. District 01,"Morganstern, Donna",Democratic,348.82,1/28/20 0:00,"C & D Printing, Inc.",Denver,CO,80212,Advertising,"Banner And Button
S"
813,CU Regent District 06,"Spiegel, Ilana",Democratic,278.26,5/6/19 0:00,Gamino Printing,Denver,CO,80209,Other,Bre Skip
794,CU Regent District 02,"Harber, Aaron",Democratic,680.0,6/19/20 0:00,Kcdo,Auroa,CO,80014,Advertising,Broadcast
796,CU Regent District 02,"Harber, Aaron",Democratic,3429.2,6/22/20 0:00,Effct Llc,Denver,CO,80204,Advertising,Broadcast Media
800,CU Regent District 02,"Harber, Aaron",Democratic,21427.95,6/24/20 0:00,Effct Llc,Denver,CO,80204,Advertising,Broadcast Television
440,Bd. Ed. District 07,"Pallozzi, Nancy",Republican,1957.38,8/31/20 0:00,"Vision Graphics, Inc",Denver,CO,80216,Advertising,Brochures
427,Bd. Ed. District 07,"Esser, Karla",Democratic,552.03,11/13/19 0:00,C&D Printing,Denver,CO,80212,Fundraising Expenses,Brochures And Envelopes
150,Bd. Ed. District 01,"Morganstern, Donna",Democratic,52.38,10/28/19 0:00,"C & D Printing, Inc.",Denver,CO,80212,Advertising,Business Cards
419,Bd. Ed. District 07,"Esser, Karla",Democratic,89.04,10/23/19 0:00,C&D Printing,Denver,CO,80212,Advertising,Business Cards
89,Bd. Ed. District 01,"Morganstern, Donna",Democratic,343.59,2/6/20 0:00,C&D Printing,Denver,CO,80212,Advertising,"Business Cards For Donna, Pamphlets For Walking And General Distribution"
451,CU Regent  District 02,"Rennison, Callie",Democratic,43.53,9/21/19 0:00,Fed Ex Office Print And Business Center,Boulder,CO,80305,Consultant & Professional Services,Business Cards From Fed Ex Office
348,Bd. Ed. District 07,"Esser, Karla",Democratic,705.71,1/26/20 0:00,Bold Text Llc,Parker,CO,80138,Consultant & Professional Services,Campaign Consulting
614,CU Regent District 02,"Gross, David",Democratic,2800.0,8/28/19 0:00,Civic Centered Consulting,Denver,CO,80203,Consultant & Professional Services,Campaign Consulting
349,Bd. Ed. District 07,"Esser, Karla",Democratic,3000.0,1/29/20 0:00,Engage Strategies Llc,Denver,CO,80202,Consultant & Professional Services,"Campaign Consulting
Check #1002"
361,Bd. Ed. District 07,"Esser, Karla",Democratic,1500.0,4/2/20 0:00,Engage Strategies Llc,Denver,CO,80202,Consultant & Professional Services,"Campaign Consulting
Check #1006"
369,Bd. Ed. District 07,"Esser, Karla",Democratic,1500.0,5/1/20 0:00,Engage Strategies Llc,Denver,CO,80202,Consultant & Professional Services,"Campaign Consulting
Check #1008
Invoice #176"
376,Bd. Ed. District 07,"Esser, Karla",Democratic,1500.0,6/1/20 0:00,Engage Strategies Llc,Denver,CO,80202,Consultant & Professional Services,"Campaign Consulting
Check #1009
Invoice #184"
386,Bd. Ed. District 07,"Esser, Karla",Democratic,1500.0,8/5/20 0:00,Engage Strategies Llc,Denver,CO,80202,Consultant & Professional Services,"Campaign Consulting
Invoice #201
Check #1012"
405,Bd. Ed. District 07,"Esser, Karla",Democratic,2250.0,10/1/20 0:00,Engage Strategies Llc,Denver,CO,80202,Consultant & Professional Services,"Campaign Consulting
Invoice #204
Check #1016"
358,Bd. Ed. District 07,"Esser, Karla",Democratic,1500.0,3/3/20 0:00,Engage Strategies Llc,Denver,CO,80202,Consultant & Professional Services,"Campaign Consulting $1500
Check #1005
Invoice #169 Inv0069"
411,Bd. Ed. District 07,"Esser, Karla",Democratic,244.07,10/7/19 0:00,C&D Printing,Denver,CO,80212,Advertising,Campaign Flyers
70,Bd. Ed. District 01,"Morganstern, Donna",Democratic,700.0,1/2/20 0:00,Blair  Taylor,Denver,CO,80207,Consultant & Professional Services,Campaign Management
72,Bd. Ed. District 01,"Morganstern, Donna",Democratic,700.0,1/10/20 0:00,Blair  Taylor,Denver,CO,80207,Consultant & Professional Services,Campaign Management
87,Bd. Ed. District 01,"Morganstern, Donna",Democratic,700.0,1/31/20 0:00,Blair  Taylor,Denver,CO,80207,Consultant & Professional Services,Campaign Management
88,Bd. Ed. District 01,"Morganstern, Donna",Democratic,700.0,2/6/20 0:00,Blair  Taylor,Denver,CO,80207,Consultant & Professional Services,Campaign Management
96,Bd. Ed. District 01,"Morganstern, Donna",Democratic,700.0,2/27/20 0:00,Blair  Taylor,Denver,CO,80207,Consultant & Professional Services,Campaign Management
101,Bd. Ed. District 01,"Morganstern, Donna",Democratic,700.0,3/8/20 0:00,Blair  Taylor,Denver,CO,80207,Consultant & Professional Services,Campaign Management
105,Bd. Ed. District 01,"Morganstern, Donna",Democratic,700.0,3/12/20 0:00,Blair  Taylor,Denver,CO,80207,Consultant & Professional Services,Campaign Management
108,Bd. Ed. District 01,"Morganstern, Donna",Democratic,700.0,3/19/20 0:00,Blair  Taylor,Denver,CO,80207,Consultant & Professional Services,Campaign Management
109,Bd. Ed. District 01,"Morganstern, Donna",Democratic,700.0,3/27/20 0:00,Blair  Taylor,Denver,CO,80207,Consultant & Professional Services,Campaign Management
110,Bd. Ed. District 01,"Morganstern, Donna",Democratic,700.0,4/4/20 0:00,Blair  Taylor,Denver,CO,80207,Consultant & Professional Services,Campaign Management
113,Bd. Ed. District 01,"Morganstern, Donna",Democratic,700.0,4/10/20 0:00,Blair  Taylor,Denver,CO,80207,Consultant & Professional Services,Campaign Management
115,Bd. Ed. District 01,"Morganstern, Donna",Democratic,700.0,4/21/20 0:00,Blair  Taylor,Denver,CO,80207,Consultant & Professional Services,Campaign Management
116,Bd. Ed. District 01,"Morganstern, Donna",Democratic,700.0,4/23/20 0:00,Blair  Taylor,Denver,CO,80207,Consultant & Professional Services,Campaign Management
118,Bd. Ed. District 01,"Morganstern, Donna",Democratic,700.0,5/4/20 0:00,Blair  Taylor,Denver,CO,80207,Consultant & Professional Services,Campaign Management
119,Bd. Ed. District 01,"Morganstern, Donna",Democratic,700.0,5/8/20 0:00,Blair  Taylor,Denver,CO,80207,Consultant & Professional Services,Campaign Management
121,Bd. Ed. District 01,"Morganstern, Donna",Democratic,700.0,5/14/20 0:00,Blair  Taylor,Denver,CO,80207,Consultant & Professional Services,Campaign Management
122,Bd. Ed. District 01,"Morganstern, Donna",Democratic,700.0,5/21/20 0:00,Blair  Taylor,Denver,CO,80207,Consultant & Professional Services,Campaign Management
125,Bd. Ed. District 01,"Morganstern, Donna",Democratic,700.0,5/28/20 0:00,Blair  Taylor,Denver,CO,80207,Consultant & Professional Services,Campaign Management
127,Bd. Ed. District 01,"Morganstern, Donna",Democratic,700.0,6/4/20 0:00,Blair  Taylor,Denver,CO,80207,Consultant & Professional Services,Campaign Management
130,Bd. Ed. District 01,"Morganstern, Donna",Democratic,700.0,6/11/20 0:00,Blair  Taylor,Denver,CO,80207,Consultant & Professional Services,Campaign Management
135,Bd. Ed. District 01,"Morganstern, Donna",Democratic,700.0,6/22/20 0:00,Blair  Taylor,Denver,CO,80207,Consultant & Professional Services,Campaign Management
138,Bd. Ed. District 01,"Morganstern, Donna",Democratic,700.0,6/26/20 0:00,Blair  Taylor,Denver,CO,80207,Consultant & Professional Services,Campaign Management
141,Bd. Ed. District 01,"Morganstern, Donna",Democratic,700.0,6/30/20 0:00,Blair  Taylor,Denver,CO,80207,Consultant & Professional Services,Campaign Management
143,Bd. Ed. District 01,"Morganstern, Donna",Democratic,700.0,10/2/19 0:00,Blair  Taylor,Denver,CO,80207,Consultant & Professional Services,Campaign Management
145,Bd. Ed. District 01,"Morganstern, Donna",Democratic,700.0,10/3/19 0:00,Blair  Taylor,Denver,CO,80207,Consultant & Professional Services,Campaign Management
147,Bd. Ed. District 01,"Morganstern, Donna",Democratic,700.0,10/11/19 0:00,Blair  Taylor,Denver,CO,80207,Consultant & Professional Services,Campaign Management
148,Bd. Ed. District 01,"Morganstern, Donna",Democratic,700.0,10/20/19 0:00,Blair  Taylor,Denver,CO,80207,Consultant & Professional Services,Campaign Management
149,Bd. Ed. District 01,"Morganstern, Donna",Democratic,700.0,10/26/19 0:00,Blair  Taylor,Denver,CO,80207,Consultant & Professional Services,Campaign Management
151,Bd. Ed. District 01,"Morganstern, Donna",Democratic,700.0,11/4/19 0:00,Blair  Taylor,Denver,CO,80207,Consultant & Professional Services,Campaign Management
152,Bd. Ed. District 01,"Morganstern, Donna",Democratic,700.0,11/8/19 0:00,Blair  Taylor,Denver,CO,80207,Consultant & Professional Services,Campaign Management
154,Bd. Ed. District 01,"Morganstern, Donna",Democratic,700.0,11/18/19 0:00,Blair  Taylor,Denver,CO,80207,Consultant & Professional Services,Campaign Management
156,Bd. Ed. District 01,"Morganstern, Donna",Democratic,700.0,12/3/19 0:00,Blair  Taylor,Denver,CO,80207,Consultant & Professional Services,Campaign Management
157,Bd. Ed. District 01,"Morganstern, Donna",Democratic,700.0,12/3/19 0:00,Blair  Taylor,Denver,CO,80207,Consultant & Professional Services,Campaign Management
159,Bd. Ed. District 01,"Morganstern, Donna",Democratic,700.0,12/16/19 0:00,Blair  Taylor,Denver,CO,80207,Consultant & Professional Services,Campaign Management
161,Bd. Ed. District 01,"Morganstern, Donna",Democratic,700.0,12/16/19 0:00,Blair  Taylor,Denver,CO,80207,Consultant & Professional Services,Campaign Management
163,Bd. Ed. District 01,"Morganstern, Donna",Democratic,700.0,12/21/19 0:00,Blair  Taylor,Denver,CO,80207,Consultant & Professional Services,Campaign Management
166,Bd. Ed. District 01,"Morganstern, Donna",Democratic,700.0,12/30/19 0:00,Blair  Taylor,Denver,CO,80207,Consultant & Professional Services,Campaign Management
93,Bd. Ed. District 01,"Morganstern, Donna",Democratic,1400.0,2/20/20 0:00,Blair  Taylor,Denver,CO,80207,Consultant & Professional Services,Campaign Management (2 Weeks)
91,Bd. Ed. District 01,"Morganstern, Donna",Democratic,360.0,2/16/20 0:00,Jefferson Prescott Consulting,Aurora,CO,80012,Consultant & Professional Services,Campaign Outreach
111,Bd. Ed. District 01,"Morganstern, Donna",Democratic,45.0,4/4/20 0:00,Jefferson Prescott Consulting,Aurora,CO,80012,Consultant & Professional Services,Campaign Outreach
618,CU Regent District 02,"Gross, David",Democratic,250.0,9/4/19 0:00,Evan Semon Photography,Denver,CO,80220,Consultant & Professional Services,Campaign Photos
129,Bd. Ed. District 01,"Morganstern, Donna",Democratic,6135.06,6/9/20 0:00,C&D Printing,Denver,CO,80212,Advertising,Campaign Postcards (With Postage) To Be Mailed Directly To Voters.
65,Bd. Ed. District 01,"Escarcega, Lisa",Democratic,500.0,11/22/19 0:00,"White River Strategies, Llc",Denver,CO,80204,Consultant & Professional Services,Campaign Services
241,Bd. Ed. District 03,"Simpson, Mayling",Democratic,194.0,10/4/20 0:00,Laura  Baker,Montrose,CO,81401,Travel & Lodging,Campaign Signs Delivery
30,Bd. Ed. District 01,"Escarcega, Lisa",Democratic,21.12,6/15/20 0:00,Colorado Democratic Party,Denver,CO,80203,Other,Campaign Texts
128,Bd. Ed. District 01,"Morganstern, Donna",Democratic,372.91,6/9/20 0:00,C&D Printing,Denver,CO,80212,Advertising,Campaign Walking Pamphlets (1500)
742,CU Regent District 02,"Gross, David",Democratic,-400.0,8/26/20 0:00,"Ngp Van, Inc.",Washington,DC,20005,Returned Expenditure,Canceled Subscription
35,Bd. Ed. District 01,"Escarcega, Lisa",Democratic,480.0,6/24/20 0:00,Daniel  Sarche,Denver,CO,80237,Other,Canvasing/Literature Distribution
297,Bd. Ed. District 03,"Rankin, Joyce",Republican,78.1,9/9/19 0:00,Vista Print,Lexington,MA,2421,Fundraising Expenses,Car Magnet Sign
320,Bd. Ed. District 03,"Rankin, Joyce",Republican,86.67,8/23/20 0:00,Vistaprint,,CO,,Advertising,Car Magnets
882,CU Regent District 06,"Spiegel, Ilana",Democratic,213.66,9/30/20 0:00,Act Blue,Somerville,MA,2144,Bank Fees,Cc Processing
894,CU Regent District 06,"Spiegel, Ilana",Democratic,128.81,10/14/20 0:00,Act Blue,Somerville,MA,2144,Bank Fees,Cc Processing
914,CU Regent District 06,"Spiegel, Ilana",Democratic,303.71,12/30/19 0:00,Act Blue,Somerville,MA,2144,Bank Fees,Cc Processing Fees
169,Bd. Ed. District 01,"Wulff, Sydnnia",Republican,50.0,10/8/20 0:00,Colorado Secretary Of State,Denver,CO,80290,Other,"Check # 1000
Dated 10/8/2020
Colorado Secretary Of State
Elections Division Statewide Registered Voter List"
170,Bd. Ed. District 01,"Wulff, Sydnnia",Republican,1058.0,10/8/20 0:00,Barlow Advertising & Design,Denver,CO,80231-3220,Advertising,"Check #1002, Dated 10/8/2020
Creative Service
Printing And Production Services: Biz Cards
Printing And Production Services: Die Cut Door Hangers"
355,Bd. Ed. District 07,"Esser, Karla",Democratic,592.17,2/21/20 0:00,Engage Strategies Llc,Denver,CO,80202,Fundraising Expenses,"Check #1004
500 Postcards
Invoice #165 Inv0065"
380,Bd. Ed. District 07,"Esser, Karla",Democratic,1500.0,7/2/20 0:00,Engage Strategies Llc,Denver,CO,80202,Consultant & Professional Services,"Check #1010
Campaign Consulting"
381,Bd. Ed. District 07,"Esser, Karla",Democratic,1500.0,7/16/20 0:00,Blue Summit Consultants Llc,Highlands Ranch,CO,80129,Consultant & Professional Services,"Check #1011
Website Reconstruction"
396,Bd. Ed. District 07,"Esser, Karla",Democratic,1500.0,9/8/20 0:00,Engage Strategies Llc,Denver,CO,80202,Consultant & Professional Services,"Check #1014 Invoice #201
Campaign Consulting"
397,Bd. Ed. District 07,"Esser, Karla",Democratic,694.72,9/8/20 0:00,Engage Strategies Llc,Denver,CO,80202,Advertising,"Check #1014 Invoice #201
Yard Signs And Stakes"
408,Bd. Ed. District 07,"Esser, Karla",Democratic,1500.0,10/3/20 0:00,Colorado Democratic Party,Denver,CO,80203,Advertising,"Check #1017
Coordinated Slate Advertising Buy-In"
425,Bd. Ed. District 07,"Esser, Karla",Democratic,1000.0,11/7/20 0:00,Engage Strategies Llc,Denver,CO,80202,Consultant & Professional Services,Check #1020
426,Bd. Ed. District 07,"Esser, Karla",Democratic,500.0,11/7/20 0:00,Susie  Omeron,Wheat Ridge,CO,80033,Consultant & Professional Services,Check #1021
815,CU Regent District 06,"Spiegel, Ilana",Democratic,18.95,5/29/19 0:00,1St Bank,Lakewood,CO,80215,Bank Fees,Check Order
83,Bd. Ed. District 01,"Morganstern, Donna",Democratic,31.66,1/25/20 0:00,Office Depot,Denver,CO,80220,Other,Clipboards And Heavy Stock Paper For Signature Collection.
389,Bd. Ed. District 07,"Esser, Karla",Democratic,15.92,8/11/20 0:00,Amazon,Seattle,WA,98108-1226,Advertising,Clipboards For Literature Walkers
85,Bd. Ed. District 01,"Morganstern, Donna",Democratic,11.34,1/27/20 0:00,Office Depot,Denver,CO,80220,Other,Clipboards For Signature Collection.
286,Bd. Ed. District 03,"Rankin, Joyce",Republican,55.0,1/4/19 0:00,Club 20,Grand Junction,CO,81502,Contributions,Club 20 Dues
142,Bd. Ed. District 01,"Morganstern, Donna",Democratic,4395.48,7/31/20 0:00,Colorado Democratic Party Political Committee,Denver,CO,80203,Advertising,Colorado Democratic Party Email Addresses For Texting Purposes.
277,Bd. Ed. District 03,"Simpson, Mayling",Democratic,64.96,10/29/20 0:00,Zoom,San Jose,CA,95113,Other,"Communication Subscription
Update Includes Automatic Payments Not Previously Reported"
616,CU Regent District 02,"Gross, David",Democratic,1000.0,9/4/19 0:00,Rkg Development,Lafayette,CO,80026,Consultant & Professional Services,Compliance Consulting
629,CU Regent District 02,"Gross, David",Democratic,500.0,1/7/20 0:00,Rkg Development,Lafayette,CO,80026,Consultant & Professional Services,Compliance Consulting
640,CU Regent District 02,"Gross, David",Democratic,1000.0,2/4/20 0:00,Rkg Development,Lafayette,CO,80026,Consultant & Professional Services,Compliance Consulting
653,CU Regent District 02,"Gross, David",Democratic,1000.0,3/9/20 0:00,Rkg Development,Lafayette,CO,80026,Consultant & Professional Services,Compliance Consulting
664,CU Regent District 02,"Gross, David",Democratic,1000.0,4/1/20 0:00,Rkg Development,Lafayette,CO,80026,Consultant & Professional Services,Compliance Consulting
669,CU Regent District 02,"Gross, David",Democratic,1000.0,5/2/20 0:00,Rkg Development,Lafayette,CO,80026,Consultant & Professional Services,Compliance Consulting
688,CU Regent District 02,"Gross, David",Democratic,1000.0,6/1/20 0:00,Rkg Development,Lafayette,CO,80026,Consultant & Professional Services,Compliance Consulting
736,CU Regent District 02,"Gross, David",Democratic,1000.0,7/1/20 0:00,Rkg Development,Lafayette,CO,80026,Consultant & Professional Services,Compliance Consulting
738,CU Regent District 02,"Gross, David",Democratic,1000.0,7/20/20 0:00,Rkg Development,Lafayette,CO,80026,Consultant & Professional Services,Compliance Consulting
212,Bd. Ed. District 03,"Simpson, Mayling",Democratic,70.0,8/2/20 0:00,Constant Contact,Waltham,MA,2451,Advertising,Constant Contact Subscription
345,Bd. Ed. District 07,"Esser, Karla",Democratic,700.0,1/3/20 0:00,Bold Text Llc,Parker,CO,80138,Consultant & Professional Services,Consultant Fees
420,Bd. Ed. District 07,"Esser, Karla",Democratic,700.0,10/27/19 0:00,Bold Text Llc,Parker,CO,80138,Consultant & Professional Services,Consultant Fees
432,Bd. Ed. District 07,"Esser, Karla",Democratic,700.0,12/2/19 0:00,Bold Text Llc,Parker,CO,80138,Consultant & Professional Services,Consultant Fees
354,Bd. Ed. District 07,"Esser, Karla",Democratic,1500.0,2/21/20 0:00,Engage Strategies Llc,Denver,CO,80202,Consultant & Professional Services,"Consulting $1500
Check #1004
Invoice #165 Inv0065"
24,Bd. Ed. District 01,"Escarcega, Lisa",Democratic,1500.0,6/1/20 0:00,Kristen  Seidel,Denver,CO,80224,Consultant & Professional Services,Consulting Services
23,Bd. Ed. District 01,"Escarcega, Lisa",Democratic,3000.0,6/1/20 0:00,Jessica  Chauvin,Aurora,CO,80110,Consultant & Professional Services,Consultiv Services
74,Bd. Ed. District 01,"Morganstern, Donna",Democratic,188.55,1/14/20 0:00,"C & D Printing, Inc.",Denver,CO,80212,Fundraising Expenses,Contribution Envelopes
509,CU Regent  District 02,"Rennison, Callie",Democratic,157.0,5/30/20 0:00,Fed Ex,Louisville,CO,780026,Other,Copies Of Documents
79,Bd. Ed. District 01,"Morganstern, Donna",Democratic,93.14,1/21/20 0:00,Office Depot,Denver,CO,80220,Office Equipment & Supplies,Copying For Petition
99,Bd. Ed. District 01,"Morganstern, Donna",Democratic,43.07,3/3/20 0:00,Office Depot,Denver,CO,80220,Office Equipment & Supplies,Copying For Signature Petitions
901,CU Regent District 06,"Spiegel, Ilana",Democratic,44.78,10/28/20 0:00,Act Blue,Somerville,MA,2144,Bank Fees,Credit Card Processing
609,CU Regent District 02,"Gross, David",Democratic,86.95,8/18/19 0:00,Actblue,Somerville,MA,2144,Fundraising Expenses,Credit Card Processing Fee
611,CU Regent District 02,"Gross, David",Democratic,362.43,8/25/19 0:00,Actblue,Somerville,MA,2144,Fundraising Expenses,Credit Card Processing Fee
615,CU Regent District 02,"Gross, David",Democratic,85.92,9/1/19 0:00,Actblue,Somerville,MA,2144,Fundraising Expenses,Credit Card Processing Fee
619,CU Regent District 02,"Gross, David",Democratic,76.05,9/8/19 0:00,Actblue,Somerville,MA,2144,Fundraising Expenses,Credit Card Processing Fee
623,CU Regent District 02,"Gross, David",Democratic,104.5,9/22/19 0:00,Actblue,Somerville,MA,2144,Fundraising Expenses,Credit Card Processing Fee
628,CU Regent District 02,"Gross, David",Democratic,48.21,1/6/20 0:00,Actblue,West Somerville,MA,2144,Fundraising Expenses,Credit Card Processing Fee
631,CU Regent District 02,"Gross, David",Democratic,66.22,1/12/20 0:00,Actblue,West Somerville,MA,2144,Fundraising Expenses,Credit Card Processing Fee
632,CU Regent District 02,"Gross, David",Democratic,73.12,1/19/20 0:00,Actblue,West Somerville,MA,2144,Fundraising Expenses,Credit Card Processing Fee
636,CU Regent District 02,"Gross, David",Democratic,38.34,1/26/20 0:00,Actblue,West Somerville,MA,2144,Fundraising Expenses,Credit Card Processing Fee
638,CU Regent District 02,"Gross, David",Democratic,16.8,2/2/20 0:00,Actblue,West Somerville,MA,2144,Fundraising Expenses,Credit Card Processing Fee
642,CU Regent District 02,"Gross, David",Democratic,13.84,2/9/20 0:00,Actblue,West Somerville,MA,2144,Fundraising Expenses,Credit Card Processing Fee
644,CU Regent District 02,"Gross, David",Democratic,17.78,2/16/20 0:00,Actblue,West Somerville,MA,2144,Fundraising Expenses,Credit Card Processing Fee
647,CU Regent District 02,"Gross, David",Democratic,19.75,2/23/20 0:00,Actblue,West Somerville,MA,2144,Fundraising Expenses,Credit Card Processing Fee
649,CU Regent District 02,"Gross, David",Democratic,3.95,3/1/20 0:00,Actblue,West Somerville,MA,2144,Fundraising Expenses,Credit Card Processing Fee
658,CU Regent District 02,"Gross, David",Democratic,25.68,3/15/20 0:00,Actblue,West Somerville,MA,2144,Fundraising Expenses,Credit Card Processing Fee
663,CU Regent District 02,"Gross, David",Democratic,0.99,3/29/20 0:00,Actblue,West Somerville,MA,2144,Fundraising Expenses,Credit Card Processing Fee
667,CU Regent District 02,"Gross, David",Democratic,5.93,4/26/20 0:00,Actblue,West Somerville,MA,2144,Fundraising Expenses,Credit Card Processing Fee
668,CU Regent District 02,"Gross, David",Democratic,88.91,4/29/20 0:00,Actblue,West Somerville,MA,2144,Fundraising Expenses,Credit Card Processing Fee
677,CU Regent District 02,"Gross, David",Democratic,9.87,5/13/20 0:00,,,,,Miscellaneous,Credit Card Processing Fee
679,CU Regent District 02,"Gross, David",Democratic,28.47,5/24/20 0:00,Actblue,West Somerville,MA,2144,Fundraising Expenses,Credit Card Processing Fee
681,CU Regent District 02,"Gross, David",Democratic,7.9,5/27/20 0:00,Actblue,West Somerville,MA,2144,Fundraising Expenses,Credit Card Processing Fee
684,CU Regent District 02,"Gross, David",Democratic,25.69,5/31/20 0:00,Actblue,West Somerville,MA,2144,Fundraising Expenses,Credit Card Processing Fee
695,CU Regent District 02,"Gross, David",Democratic,4.95,6/7/20 0:00,Actblue,West Somerville,MA,2144,Fundraising Expenses,Credit Card Processing Fee
703,CU Regent District 02,"Gross, David",Democratic,4.74,6/14/20 0:00,,,,,Miscellaneous,Credit Card Processing Fee
714,CU Regent District 02,"Gross, David",Democratic,3.96,6/21/20 0:00,,,,,Miscellaneous,Credit Card Processing Fee
718,CU Regent District 02,"Gross, David",Democratic,3.95,6/24/20 0:00,,,,,Miscellaneous,Credit Card Processing Fee
730,CU Regent District 02,"Gross, David",Democratic,2.97,6/30/20 0:00,,,,,Miscellaneous,Credit Card Processing Fee
747,CU Regent District 02,"Gross, David",Democratic,23.74,10/13/19 0:00,Actblue,Somerville,MA,2144,Fundraising Expenses,Credit Card Processing Fee
748,CU Regent District 02,"Gross, David",Democratic,9.88,10/15/19 0:00,Actblue,Somerville,MA,2144,Fundraising Expenses,Credit Card Processing Fee
750,CU Regent District 02,"Gross, David",Democratic,8.89,10/27/19 0:00,Actblue,Somerville,MA,2144,Fundraising Expenses,Credit Card Processing Fee
752,CU Regent District 02,"Gross, David",Democratic,2.97,11/3/19 0:00,Actblue,Somerville,MA,2144,Fundraising Expenses,Credit Card Processing Fee
753,CU Regent District 02,"Gross, David",Democratic,19.75,11/10/19 0:00,Actblue,Somerville,MA,2144,Fundraising Expenses,Credit Card Processing Fee
756,CU Regent District 02,"Gross, David",Democratic,28.05,11/17/19 0:00,Actblue,Somerville,MA,2144,Fundraising Expenses,Credit Card Processing Fee
757,CU Regent District 02,"Gross, David",Democratic,48.39,11/24/19 0:00,Actblue,Somerville,MA,2144,Fundraising Expenses,Credit Card Processing Fee
758,CU Regent District 02,"Gross, David",Democratic,15.81,12/1/19 0:00,Actblue,Somerville,MA,2144,Fundraising Expenses,Credit Card Processing Fee
762,CU Regent District 02,"Gross, David",Democratic,53.33,12/8/19 0:00,Actblue,Somerville,MA,2144,Fundraising Expenses,Credit Card Processing Fee
764,CU Regent District 02,"Gross, David",Democratic,19.96,12/15/19 0:00,Actblue,Somerville,MA,2144,Fundraising Expenses,Credit Card Processing Fee
766,CU Regent District 02,"Gross, David",Democratic,36.96,12/22/19 0:00,Actblue,Somerville,MA,2144,Fundraising Expenses,Credit Card Processing Fee
767,CU Regent District 02,"Gross, David",Democratic,53.95,12/29/19 0:00,Actblue,Somerville,MA,2144,Fundraising Expenses,Credit Card Processing Fee
768,CU Regent District 02,"Gross, David",Democratic,72.1,12/31/19 0:00,Actblue,Somerville,MA,2144,Fundraising Expenses,Credit Card Processing Fee
745,CU Regent District 02,"Gross, David",Democratic,33.59,10/6/19 0:00,Actblue,Somerville,MA,2144,Fundraising Expenses,Credit Card Processing Fees
821,CU Regent District 06,"Spiegel, Ilana",Democratic,338.62,6/30/19 0:00,Act Blue,Somerville,MA,2144,Bank Fees,Credit Card Processing Fees
781,CU Regent District 02,"Harber, Aaron",Democratic,170.4,4/29/20 0:00,,,,,Bank Fees,Credit Card Processing Fees - Act Blue
643,CU Regent District 02,"Gross, David",Democratic,525.0,2/9/20 0:00,"Ngp Van, Inc.",Washington,DC,20005,Office Equipment & Supplies,Database
693,CU Regent District 02,"Gross, David",Democratic,900.0,6/4/20 0:00,"Ngp Van, Inc.",Washington,DC,20005,Office Equipment & Supplies,Database
763,CU Regent District 02,"Gross, David",Democratic,270.0,12/12/19 0:00,"Ngp Van, Inc.",Washington,DC,20005,Consultant & Professional Services,Database
362,Bd. Ed. District 07,"Esser, Karla",Democratic,42.0,4/7/20 0:00,"Ngp Van, Inc",Somerville,MA,2144,Other,"Democratic Voter Database
Predictive Dialer 300 Minutes"
340,Bd. Ed. District 07,"Esser, Karla",Democratic,1450.0,8/29/19 0:00,Bold Text Llc,Parker,CO,80138,Consultant & Professional Services,"Development Of Webpage
Expenditure By Candidate"
683,CU Regent District 02,"Gross, David",Democratic,100.0,5/29/20 0:00,Facebook,Menlo Park,CA,94025,Advertising,Digital Ads
686,CU Regent District 02,"Gross, David",Democratic,109.44,6/1/20 0:00,Facebook,Menlo Park,CA,94025,Advertising,Digital Ads
690,CU Regent District 02,"Gross, David",Democratic,100.0,6/3/20 0:00,Facebook,Menlo Park,CA,94025,Advertising,Digital Ads
697,CU Regent District 02,"Gross, David",Democratic,100.0,6/10/20 0:00,Facebook,Menlo Park,CA,94025,Advertising,Digital Ads
699,CU Regent District 02,"Gross, David",Democratic,100.0,6/11/20 0:00,Facebook,Menlo Park,CA,94025,Advertising,Digital Ads
702,CU Regent District 02,"Gross, David",Democratic,100.0,6/12/20 0:00,Facebook,Menlo Park,CA,94025,Advertising,Digital Ads
706,CU Regent District 02,"Gross, David",Democratic,100.0,6/15/20 0:00,Facebook,Menlo Park,CA,94025,Advertising,Digital Ads
710,CU Regent District 02,"Gross, David",Democratic,100.0,6/16/20 0:00,Facebook,Menlo Park,CA,94025,Advertising,Digital Ads
711,CU Regent District 02,"Gross, David",Democratic,100.0,6/18/20 0:00,Facebook,Menlo Park,CA,94025,Advertising,Digital Ads
713,CU Regent District 02,"Gross, David",Democratic,100.0,6/19/20 0:00,Facebook,Menlo Park,CA,94025,Advertising,Digital Ads
715,CU Regent District 02,"Gross, David",Democratic,600.0,6/22/20 0:00,Facebook,Menlo Park,CA,94025,Advertising,Digital Ads
717,CU Regent District 02,"Gross, David",Democratic,400.0,6/23/20 0:00,Facebook,Menlo Park,CA,94025,Advertising,Digital Ads
719,CU Regent District 02,"Gross, David",Democratic,200.0,6/24/20 0:00,Facebook,Menlo Park,CA,94025,Advertising,Digital Ads
720,CU Regent District 02,"Gross, David",Democratic,200.0,6/25/20 0:00,Facebook,Menlo Park,CA,94025,Advertising,Digital Ads
727,CU Regent District 02,"Gross, David",Democratic,300.0,6/29/20 0:00,Facebook,Menlo Park,CA,94025,Advertising,Digital Ads
731,CU Regent District 02,"Gross, David",Democratic,300.0,6/30/20 0:00,Facebook,Menlo Park,CA,94025,Advertising,Digital Ads
732,CU Regent District 02,"Gross, David",Democratic,48.58,6/30/20 0:00,Facebook,Menlo Park,CA,94025,Advertising,Digital Ads
532,CU Regent  District 02,"Rennison, Callie",Democratic,12650.0,6/15/20 0:00,Complete Digital Llc,Washington,DC,20003,Advertising,Digital Ads For Callie Rennison For Cu Regent
685,CU Regent District 02,"Gross, David",Democratic,5578.81,6/1/20 0:00,4Degrees,Lakewood,CO,80226,Advertising,Digital Advertising
696,CU Regent District 02,"Gross, David",Democratic,8000.0,6/8/20 0:00,4Degrees,Lakewood,CO,80226,Advertising,Digital Advertising
704,CU Regent District 02,"Gross, David",Democratic,8000.0,6/15/20 0:00,4Degrees,Lakewood,CO,80226,Advertising,Digital Advertising
725,CU Regent District 02,"Gross, David",Democratic,8000.0,6/25/20 0:00,4Degrees,Lakewood,CO,80226,Advertising,Digital Advertising
726,CU Regent District 02,"Gross, David",Democratic,39000.0,6/29/20 0:00,4Degrees,Lakewood,CO,80226,Advertising,Digital Advertising
515,CU Regent  District 02,"Rennison, Callie",Democratic,17500.0,6/1/20 0:00,Complete Digital Llc,Washington,DC,20003,Advertising,Digital Advertising For Callie Rennison For Cu Regent
539,CU Regent  District 02,"Rennison, Callie",Democratic,7000.0,6/22/20 0:00,Complete Digital Llc,Washington,DC,20003,Advertising,Digital Advertising For Callie Rennison For Cu Regent
382,Bd. Ed. District 07,"Esser, Karla",Democratic,5465.0,7/16/20 0:00,Blue Summit Consultants Llc,Highlands Ranch,CO,80129,Advertising,"Digital Marketing
Check # 1011"
398,Bd. Ed. District 07,"Esser, Karla",Democratic,5465.0,9/14/20 0:00,Blue Summit Consultants Llc,Highlands Ranch,CO,80129,Advertising,"Digital Marketing
Check #1015
Invoice #65E0596B-0002"
412,Bd. Ed. District 07,"Esser, Karla",Democratic,7000.0,10/7/20 0:00,Engage Strategies Llc,Denver,CO,80202,Advertising,"Digital Targeting
Invoice #204
Check #1018"
418,Bd. Ed. District 07,"Esser, Karla",Democratic,2100.0,10/21/20 0:00,Engage Strategies Llc,Denver,CO,80202,Advertising,"Digital Targeting
Invoice #213
Check #1017"
541,CU Regent  District 02,"Rennison, Callie",Democratic,1850.0,6/22/20 0:00,Complete Digital Llc,Washington,DC,20003,Advertising,Digitial Advertising For Callie Rennison For Cu Regent
791,CU Regent District 02,"Harber, Aaron",Democratic,52225.13,6/11/20 0:00,Jpm+M,Sacramento,CA,95814,Advertising,Direct Mail
795,CU Regent District 02,"Harber, Aaron",Democratic,79418.46,6/22/20 0:00,Jpm+M,Sacramento,CA,95814,Advertising,Direct Mail
797,CU Regent District 02,"Harber, Aaron",Democratic,8487.16,6/22/20 0:00,Egan Printing,Denver,CO,80204,Advertising,Direct Mail
196,Bd. Ed. District 03,"Simpson, Mayling",Democratic,190.0,6/19/20 0:00,Global Internet Ventures,Jersey City,NJ,07306-3018,Other,Domain Name Registrations
146,Bd. Ed. District 01,"Morganstern, Donna",Democratic,95.0,10/9/19 0:00,Godaddy Corporate Headquarters,Scottsdale,AZ,85260,Advertising,"Donna For Colorado Kids Website Hosting By Godaddy
One Year Subscription"
300,Bd. Ed. District 03,"Rankin, Joyce",Republican,30.0,1/16/20 0:00,Holy Cross Cattlewomen,Carbondale,CO,81623,Miscellaneous,Dues
258,Bd. Ed. District 03,"Simpson, Mayling",Democratic,199.0,10/17/20 0:00,Dropbox Inc.,San Francisco,CA,94158,Other,Electronic Document Storage And Retrieval Services
401,Bd. Ed. District 07,"Esser, Karla",Democratic,420.0,9/28/20 0:00,Vinzenz  Esser,Lakewood,CO,80228,Advertising,"Electronic Transfer Of Funds
Reimbursement For 1,200 Postcard Stamps
Post Office Receipt # 840-58000063-5-4422216-1"
639,CU Regent District 02,"Gross, David",Democratic,7.51,2/4/20 0:00,4Degrees,Lakewood,CO,80226,Consultant & Professional Services,Email Platform
651,CU Regent District 02,"Gross, David",Democratic,2.58,3/3/20 0:00,4Degrees,Lakewood,CO,80226,Consultant & Professional Services,Email Platform
674,CU Regent District 02,"Gross, David",Democratic,5.2,5/9/20 0:00,4Degrees,Lakewood,CO,80226,Consultant & Professional Services,Email Platform
650,CU Regent District 02,"Gross, David",Democratic,230.0,3/3/20 0:00,4Degrees,Lakewood,CO,80226,Consultant & Professional Services,Facebook Ads
654,CU Regent District 02,"Gross, David",Democratic,300.0,3/9/20 0:00,Trees Cut Stars Design Studio,Milwaukee,WI,53207,Advertising,Facebook Ads
670,CU Regent District 02,"Gross, David",Democratic,362.64,5/5/20 0:00,4Degrees,Lakewood,CO,80226,Advertising,Facebook Ads
346,Bd. Ed. District 07,"Esser, Karla",Democratic,283.28,1/10/20 0:00,Bold Text Llc,Parker,CO,80138,Advertising,Facebook Advertisement Expenses
21,Bd. Ed. District 01,"Escarcega, Lisa",Democratic,25.0,5/15/20 0:00,Facebook,Menlo Park,CA,94025,Advertising,Facebook Fee
520,CU Regent  District 02,"Rennison, Callie",Democratic,1.29,6/7/20 0:00,Facebook,Menlo Park,CA,94025,Advertising,Fb Post Boost
522,CU Regent  District 02,"Rennison, Callie",Democratic,1.29,6/8/20 0:00,Facebook,Menlo Park,CA,94025,Advertising,Fb Post Boost
524,CU Regent  District 02,"Rennison, Callie",Democratic,1.29,6/8/20 0:00,Facebook,Menlo Park,CA,94025,Advertising,Fb Post Boost
526,CU Regent  District 02,"Rennison, Callie",Democratic,0.42,6/10/20 0:00,Facebook,Menlo Park,CA,94025,Advertising,Fb Post Boost
528,CU Regent  District 02,"Rennison, Callie",Democratic,0.42,6/10/20 0:00,Facebook,Menlo Park,CA,94025,Advertising,Fb Post Boost
102,Bd. Ed. District 01,"Morganstern, Donna",Democratic,3.95,3/8/20 0:00,Actblue,Somerville,MA,2144,Fundraising Expenses,Fee Deducted From Disbursement Check
394,Bd. Ed. District 07,"Esser, Karla",Democratic,4.0,8/27/20 0:00,1St Bank,Lakewood,CO,80215,Bank Fees,Fee For 2 Visa Atm Cards
195,Bd. Ed. District 03,"Simpson, Mayling",Democratic,150.0,6/18/20 0:00,Colorado Democratic Party,Denver,CO,80203,Miscellaneous,Fee To Attend Colorado Democratic Political Event
895,CU Regent District 06,"Spiegel, Ilana",Democratic,4.0,10/14/20 0:00,,,,,Bank Fees,First Bank Card Fee
162,Bd. Ed. District 01,"Morganstern, Donna",Democratic,270.26,12/16/19 0:00,"C & D Printing, Inc.",Denver,CO,80212,Advertising,Flyers For Walking
352,Bd. Ed. District 07,"Esser, Karla",Democratic,54.99,2/1/20 0:00,Karla  Esser,Lakewood,CO,80228,"Food, Beverages and Meals","Food And Beverage For Fundraising Event On 2/1/2020
Check #1003
Costco Receipt Available"
445,Bd. Ed. District 07,"Pallozzi, Nancy",Republican,168.24,10/22/20 0:00,King Soopers,Lakewood,CO,80232,"Food, Beverages and Meals",Food For Volunteers
885,CU Regent District 06,"Spiegel, Ilana",Democratic,46.8,10/3/19 0:00,Google Llc,Mountain View,CA,94043,Office Equipment & Supplies,G Suite
890,CU Regent District 06,"Spiegel, Ilana",Democratic,2250.0,10/9/20 0:00,Five Star Campaigns,Denver,CO,80206,Consultant & Professional Services,Gotv
404,Bd. Ed. District 07,"Esser, Karla",Democratic,608.75,10/1/19 0:00,Bold Text Llc,Parker,CO,80138,Consultant & Professional Services,Graphic Design And Campaign Consulting
193,Bd. Ed. District 03,"Simpson, Mayling",Democratic,330.0,6/5/20 0:00,Monte Vista Journal,Monte Vista,CO,81144,Advertising,Half Page Color Ads In San Luis Valley Newspapers
314,Bd. Ed. District 03,"Rankin, Joyce",Republican,29.65,7/16/20 0:00,Embroidery Shop Of Craig,Craig,CO,81625,Miscellaneous,Hats
816,CU Regent District 06,"Spiegel, Ilana",Democratic,485.0,5/31/19 0:00,Bold Text Llc,Parker,CO,80138,Consultant & Professional Services,Invoice 19-0302
1194,CU Regent District 07,"Chavez, Nolbert",Democratic,80.0,2/1/20 0:00,Jefferson County Dem Party,Denver,CO,80220,"Food, Beverages and Meals",Jefferson County Democrats Italian Dinner
1198,CU Regent District 07,"Chavez, Nolbert",Democratic,50.0,3/7/20 0:00,Colorado Securtarty Of State,Denver,CO,80290,Miscellaneous,Late Filling Fee Colorado Sec. State. #2020E000072
335,Bd. Ed. District 03,"Rankin, Joyce",Republican,90.0,11/5/20 0:00,"Eagle County Republicans (Ecr, Ecrcc)",Vail,CO,81620,Miscellaneous,Ldd
637,CU Regent District 02,"Gross, David",Democratic,1060.0,1/27/20 0:00,Tierney Lawrence,Denver,CO,80203,Consultant & Professional Services,Legal Services
610,CU Regent District 02,"Gross, David",Democratic,125.0,8/22/19 0:00,Kristine  Kelly,Centennial,CO,80122,Consultant & Professional Services,Logo Design
694,CU Regent District 02,"Gross, David",Democratic,31626.0,6/4/20 0:00,Superior Blue Strategies,Alexandria,VA,22309,Advertising,Mail
700,CU Regent District 02,"Gross, David",Democratic,84803.0,6/11/20 0:00,Superior Blue Strategies,Alexandria,VA,22309,Advertising,Mail
716,CU Regent District 02,"Gross, David",Democratic,22645.0,6/22/20 0:00,Superior Blue Strategies,Alexandria,VA,22309,Advertising,Mail
723,CU Regent District 02,"Gross, David",Democratic,1519.0,6/25/20 0:00,Superior Blue Strategies,Alexandria,VA,22309,Advertising,Mail
648,CU Regent District 02,"Gross, David",Democratic,6340.0,2/27/20 0:00,Superior Blue Strategies,Alexandria,VA,22309,Advertising,Mailing
